Analysed Amount,Supplier,3CCN - Level 3 Cost Centre Name,5CCN - Level 5 Cost Centre Name,9CCN - Level 9 Cost Centre Name,9CCC - Level 9 Cost Centre Code,9AN - Level 9 Account Name,Date Paid,5AN - Level 5 Account Name,Transaction Reference,3CCN - Level 3 Cost Centre Name,Dept
7746775.70,Nottinghamshire County Council,Collection Fund,Precepting Authorities,Notts Cc Precept & Ndr Share,5930,Precept Paid,13/10/2020,Collection Fund Accounts,108339,Collection Fund,FINANCE & CORPORATE SERVICES
7746775.70,Nottinghamshire County Council,Collection Fund,Precepting Authorities,Notts Cc Precept & Ndr Share,5930,Precept Paid,17/11/2020,Collection Fund Accounts,108340,Collection Fund,FINANCE & CORPORATE SERVICES
998396.00,Notts Police & Crime Commissioner,Collection Fund,Precepting Authorities,Notts Police Precept & Ndr,5932,Precept Paid,13/10/2020,Collection Fund Accounts,107472,Collection Fund,FINANCE & CORPORATE SERVICES
998396.00,Notts Police & Crime Commissioner,Collection Fund,Precepting Authorities,Notts Police Precept & Ndr,5932,Precept Paid,17/11/2020,Collection Fund Accounts,107473,Collection Fund,FINANCE & CORPORATE SERVICES
381693.50,Notts Fire And Rescue Service,Collection Fund,Precepting Authorities,Notts Fire Precept & Ndr,5933,Precept Paid,13/10/2020,Collection Fund Accounts,108348,Collection Fund,FINANCE & CORPORATE SERVICES
381693.50,Notts Fire And Rescue Service,Collection Fund,Precepting Authorities,Notts Fire Precept & Ndr,5933,Precept Paid,17/11/2020,Collection Fund Accounts,108349,Collection Fund,FINANCE & CORPORATE SERVICES
221440.84,As Enterprises Limited,Capital Expenditure,Transformation & Innovation,Cotgrave Phase 2,0387,Legal & Professional Services,01/12/2020,Supplies & Services,116142,Capital Expenditure,CAPITAL
176403.00,Parkwood Community Leisure,Neighbourhoods,Leisure Contracts & Car Parks,Leisure Management Contract,1795,Parkwood Contract,02/10/2020,Third Party Payments,113343,Neighbourhoods,FINANCE & CORPORATE SERVICES
156880.53,As Enterprises Limited,Capital Expenditure,Transformation & Innovation,Cotgrave Phase 2,0387,Legal & Professional Services,24/12/2020,Supplies & Services,118674,Capital Expenditure,CAPITAL
146486.22,As Enterprises Limited,Capital Expenditure,Transformation & Innovation,Cotgrave Phase 2,0387,Legal & Professional Services,22/10/2020,Supplies & Services,114232,Capital Expenditure,CAPITAL
142574.69,Streetwise Environmental Ltd           1,Neighbourhoods,Waste & Fleet Management,Streetwise Contract,8301,Contractors-Third Party,27/10/2020,Third Party Payments,113994,Neighbourhoods,FINANCE & CORPORATE SERVICES
142574.69,Streetwise Environmental Ltd           1,Neighbourhoods,Waste & Fleet Management,Streetwise Contract,8301,Contractors-Third Party,26/11/2020,Third Party Payments,115163,Neighbourhoods,FINANCE & CORPORATE SERVICES
142574.69,Streetwise Environmental Ltd           1,Neighbourhoods,Waste & Fleet Management,Streetwise Contract,8301,Contractors-Third Party,24/12/2020,Third Party Payments,117251,Neighbourhoods,FINANCE & CORPORATE SERVICES
141651.00,Trent Valley Internal Drainage Board,Finance & Corporate Services,Financial Services,Internal Drainage Board Levies,1047,Nndr,24/11/2020,Premises Related Expenditure,108334,Finance & Corporate Services,FINANCE & CORPORATE SERVICES
109353.00,Parkwood Community Leisure,Neighbourhoods,Leisure Contracts & Car Parks,Leisure Management Contract,1795,Parkwood Contract,26/11/2020,Third Party Payments,115140,Neighbourhoods,FINANCE & CORPORATE SERVICES
76510.00,Trent Bridge Community Trust,Communities,Community Development,Community Development,1581,Projects & Activities,20/11/2020,Supplies & Services,115180,Communities,COMMUNITIES
74195.00,Nottingham City Council,Neighbourhoods,Waste & Fleet Management,Eastcroft Depot,4002,Olas - Nottm City Council,28/10/2020,Third Party Payments,113645,Neighbourhoods,NEIGHBOURHOODS
72521.00,Parkwood Community Leisure,Neighbourhoods,Leisure Contracts & Car Parks,Leisure Management Contract,1795,Parkwood Contract,18/12/2020,Third Party Payments,116761,Neighbourhoods,FINANCE & CORPORATE SERVICES
61456.00,Parkwood Community Leisure,Neighbourhoods,Leisure Contracts & Car Parks,Leisure Management Contract,1795,Parkwood Contract,03/12/2020,Third Party Payments,115908,Neighbourhoods,FINANCE & CORPORATE SERVICES
53917.00,Total Reclaims Demolition Ltd,Capital Expenditure,Transformation & Innovation,Abbey Road Redevelopment,0312,Contractors-Third Party,06/10/2020,Third Party Payments,113416,Capital Expenditure,CAPITAL
48423.16,The Saville Group Ltd,Capital Expenditure,Finance & Corporate,Ict Replacement Programme,0592,Computer Hardware,13/10/2020,Supplies & Services,113559,Capital Expenditure,CAPITAL
42014.94,Henry Riley Llp,Capital Expenditure,Transformation & Innovation,Bingham Leisure Hub,0314,Legal & Professional Services,28/10/2020,Supplies & Services,114298,Capital Expenditure,TRANSFORMATION
36372.00,Ridge And Partners Llp,Capital Expenditure,Transformation & Innovation,The Crematorium,0684,Legal & Professional Services,08/12/2020,Supplies & Services,116593,Capital Expenditure,CAPITAL
36372.00,Ridge And Partners Llp,Capital Expenditure,Transformation & Innovation,The Crematorium,0684,Legal & Professional Services,24/12/2020,Supplies & Services,118705,Capital Expenditure,CAPITAL
33341.00,Ridge And Partners Llp,Capital Expenditure,Transformation & Innovation,The Crematorium,0684,Legal & Professional Services,08/12/2020,Supplies & Services,116582,Capital Expenditure,CAPITAL
31348.31,Nottingham City Council,Neighbourhoods,Waste & Fleet Management,Fleet,8600,Contractors-Transport,14/12/2020,Transport Related Expenditure,116811,Neighbourhoods,FINANCE & CORPORATE SERVICES
30932.48,Nottingham City Council,Neighbourhoods,Waste & Fleet Management,Fleet,8600,Contractors-Transport,26/11/2020,Transport Related Expenditure,115930,Neighbourhoods,FINANCE & CORPORATE SERVICES
30568.02,Nottingham City Council,Neighbourhoods,Waste & Fleet Management,Fleet,8600,Contractors-Transport,29/10/2020,Transport Related Expenditure,114461,Neighbourhoods,FINANCE & CORPORATE SERVICES
28256.97,Nottingham City Council,Neighbourhoods,Waste & Fleet Management,Fleet,8600,Diesel,17/11/2020,Transport Related Expenditure,115181,Neighbourhoods,FINANCE & CORPORATE SERVICES
28032.52,Freeths Llp,Communities,Planning & Growth,Development Control,1161,Legal & Professional Services,27/10/2020,Supplies & Services,114123,Communities,COMMUNITIES
27071.53,Nottingham City Council,Neighbourhoods,Waste & Fleet Management,Fleet,8600,Diesel,20/10/2020,Transport Related Expenditure,114004,Neighbourhoods,FINANCE & CORPORATE SERVICES
26872.70,Notts County Council,Transformation,Property Services,Land Holdings,1884,Responsive Works - Buildings,20/11/2020,Premises Related Expenditure,115215,Transformation,TRANSFORMATION
23502.00,Parkwood Community Leisure,Neighbourhoods,Leisure Contracts & Car Parks,Leisure Management Contract,1795,Parkwood Contract,18/12/2020,Third Party Payments,116787,Neighbourhoods,FINANCE & CORPORATE SERVICES
21435.00,Apw (Nottm) Ltd,Capital Expenditure,Neighbourhoods,Disabled Facilities Grant,0332,Grants,10/11/2020,Supplies & Services,114668,Capital Expenditure,CAPITAL
19801.68,Henry Riley Llp,Capital Expenditure,Transformation & Innovation,Bingham Leisure Hub,0314,Legal & Professional Services,18/11/2020,Supplies & Services,114701,Capital Expenditure,TRANSFORMATION
18250.00,Civica Uk Ltd,Finance & Corporate Services,Ict,It Rechargeable Costs,4722,Maintenance Contracts - S&S,02/11/2020,Supplies & Services,113696,Finance & Corporate Services,TRANSFORMATION
16879.35,Western Power Distribution (East Mids),Capital Expenditure,Transformation & Innovation,Cotgrave Phase 2,0387,Legal & Professional Services,13/10/2020,Supplies & Services,113856,Capital Expenditure,CAPITAL
16550.00,Gedling Borough Council,Finance & Corporate Services,Financial Services,Financial Services,4705,Contractors-Supplies & Servs,10/11/2020,Supplies & Services,114579,Finance & Corporate Services,FINANCE & CORPORATE SERVICES
14900.00,Civica Uk Ltd,Finance & Corporate Services,Ict,It Rechargeable Costs,4722,Maintenance Contracts - S&S,27/10/2020,Supplies & Services,114038,Finance & Corporate Services,TRANSFORMATION
14419.62,Notts County Council,Capital Expenditure,Transformation & Innovation,Cotgrave Phase 2,0387,Legal & Professional Services,20/11/2020,Supplies & Services,115213,Capital Expenditure,CAPITAL
13447.20,One51 Es Plastics (Uk) Ltd T/A Mgb Plastics,Neighbourhoods,Waste & Fleet Management,Waste Collection,8403,Other Equipment/Materials,28/10/2020,Supplies & Services,114021,Neighbourhoods,FINANCE & CORPORATE SERVICES
13312.50,Bdo International Ltd,Finance & Corporate Services,Financial Services,Financial Services,4705,Professional Subscriptions,20/10/2020,Employee Related Expenditure,113771,Finance & Corporate Services,FINANCE & CORPORATE SERVICES
12720.00,Meritec Ltd,Finance & Corporate Services,Ict,It Rechargeable Costs,4722,Maintenance Contracts - S&S,21/10/2020,Supplies & Services,113633,Finance & Corporate Services,TRANSFORMATION
12555.65,Daisy Corporate Services Trading Limited,Finance & Corporate Services,Ict,Telephones,4870,Telephone Rental,20/11/2020,Supplies & Services,114801,Finance & Corporate Services,TRANSFORMATION
12310.00,Learning Pool Ltd,Transformation,Human Resources,Corporate Training,4893,Subscriptions,14/12/2020,Supplies & Services,115918,Transformation,TRANSFORMATION
12214.00,Trent Valley Plumbing & Build,Capital Expenditure,Neighbourhoods,Disabled Facilities Grant,0332,Grants,03/11/2020,Supplies & Services,114508,Capital Expenditure,CAPITAL
11184.03,Daisy Corporate Services Trading Limited,Finance & Corporate Services,Ict,Telephones,4870,Maintenance Contracts - S&S,20/11/2020,Supplies & Services,114801,Finance & Corporate Services,TRANSFORMATION
11129.94,South Notts Builders Ltd,Capital Expenditure,Neighbourhoods,Disabled Facilities Grant,0332,Grants,03/11/2020,Supplies & Services,114509,Capital Expenditure,CAPITAL
10950.00,Bunny Parish Council,General Fund Summary,Cies,Parish Council Precepts,1990,Parish Precepts,22/12/2020,Transfers Expenditure,118010,General Fund Summary,FINANCE & CORPORATE SERVICES
10000.00,Connect Public Affairs Ltd,Finance & Corporate Services,Democratic Services,Members Services,1000,Legal & Professional Services,02/10/2020,Supplies & Services,113659,Finance & Corporate Services,FINANCE & CORPORATE SERVICES
10000.00,Connect Public Affairs Ltd,Finance & Corporate Services,Democratic Services,Members Services,1000,Legal & Professional Services,10/11/2020,Supplies & Services,114627,Finance & Corporate Services,FINANCE & CORPORATE SERVICES
10000.00,Geldards Llp,Capital Expenditure,Transformation & Innovation,Abbey Road Redevelopment,0312,Legal & Professional Services,13/11/2020,Supplies & Services,114614,Capital Expenditure,CAPITAL
10000.00,Cloud 9 Event Management Ltd,Assets,Current Assets,Covid19 Funding,6219,Discretionary Bus Grants 972k,06/10/2020,Discretionary Bus Grants 972k,113739,Assets,FINANCE & CORPORATE SERVICES
10000.00,Palmers Custom Fireplaces,Assets,Current Assets,Covid19 Funding,6219,10k Business Grants,06/10/2020,10k Business Grants,113740,Assets,FINANCE & CORPORATE SERVICES
10000.00,Palmers Soft Furnishing And Interiors,Assets,Current Assets,Covid19 Funding,6219,10k Business Grants,02/10/2020,10k Business Grants,113657,Assets,FINANCE & CORPORATE SERVICES
9500.00,Limonta Smith Jv Ltd,Capital Expenditure,Communities,Gresham Pitches,0280,Legal & Professional Services,18/12/2020,Supplies & Services,116733,Capital Expenditure,#N/A
9376.00,Bruton Knowles,Capital Income,Capital Receipts,"Sharphill, Edwalton (Wells Lan",9081,Legal & Professional Services,10/11/2020,Supplies & Services,114477,Capital Income,FINANCE & CORPORATE SERVICES
9296.00,4d Tree Survey Ltd,Transformation,Property Services,Property Services,4713,Legal & Professional Services,16/12/2020,Supplies & Services,116727,Transformation,TRANSFORMATION
9250.00,Link Treasury Services Ltd,Finance & Corporate Services,Financial Services,Interest Receipts,1034,Legal & Professional Services,23/11/2020,Supplies & Services,114651,Finance & Corporate Services,FINANCE & CORPORATE SERVICES
9113.10,Advanced Business Solutions,Finance & Corporate Services,Ict,It Rechargeable Costs,4722,Maintenance Contracts - S&S,18/11/2020,Supplies & Services,114662,Finance & Corporate Services,TRANSFORMATION
8719.75,Virgin Media Business,Finance & Corporate Services,Ict,It Rechargeable Costs,4722,Cyber Security,09/12/2020,Supplies & Services,116529,Finance & Corporate Services,TRANSFORMATION
8360.00,New Dec Interiors Ltd,Capital Expenditure,Neighbourhoods,Disabled Facilities Grant,0332,Grants,16/12/2020,Supplies & Services,116774,Capital Expenditure,CAPITAL
8350.00,Beechmast Ltd,Communities,Community Development,Environmental Promotion,1590,Legal & Professional Services,13/10/2020,Supplies & Services,113794,Communities,COMMUNITIES
8290.00,Apw (Nottm) Ltd,Capital Expenditure,Neighbourhoods,Disabled Facilities Grant,0332,Grants,16/12/2020,Supplies & Services,116773,Capital Expenditure,CAPITAL
8250.00,Melton Borough Council,Finance & Corporate Services,Financial Services,Corporate Management,4895,Legal & Professional Services,06/10/2020,Supplies & Services,113615,Finance & Corporate Services,FINANCE & CORPORATE SERVICES
8000.00,Kpmg Llp,Finance & Corporate Services,Revenues & Benefits,Housing Benefits Admin.,1140,External Audit Fee,27/10/2020,Supplies & Services,114081,Finance & Corporate Services,FINANCE & CORPORATE SERVICES
7931.00,A R Signs Ltd,Finance & Corporate Services,"Performance, Repn & Comms",Performance And Reputation,4710,External Printing,16/12/2020,Supplies & Services,116457,Finance & Corporate Services,FINANCE & CORPORATE SERVICES
7644.74,Streetwise Environmental Ltd           1,Transformation,Property Services,Open Spaces & Footpaths,1290,Responsive Works - Buildings,26/11/2020,Premises Related Expenditure,112142,Transformation,TRANSFORMATION
7537.00,Astor Bannerman (Medical) Ltd,Capital Expenditure,Neighbourhoods,Disabled Facilities Grant,0332,Grants,12/11/2020,Supplies & Services,114242,Capital Expenditure,CAPITAL
7500.00,Nigel D Griffiths & Co,Transformation,Customer Services,Customer Services,4807,Premises Rents,13/10/2020,Premises Related Expenditure,113317,Transformation,TRANSFORMATION
7500.00,Nigel D Griffiths & Co,Transformation,Customer Services,Customer Services,4807,Premises Rents,18/12/2020,Premises Related Expenditure,116812,Transformation,TRANSFORMATION
7471.00,A R Signs Ltd,Finance & Corporate Services,"Performance, Repn & Comms",Performance And Reputation,4710,External Printing,20/11/2020,Supplies & Services,114621,Finance & Corporate Services,FINANCE & CORPORATE SERVICES
7375.00,Henry Riley Llp,Capital Expenditure,Transformation & Innovation,Bingham Leisure Hub,0314,Legal & Professional Services,18/12/2020,Supplies & Services,116608,Capital Expenditure,TRANSFORMATION
7000.00,Nottinghamshire County Cricket Club Limited,Assets,Current Assets,Covid19 Funding,6219,Addnl Restrictions Grant,16/11/2020,Addnl Restrictions Grant,115003,Assets,FINANCE & CORPORATE SERVICES
7000.00,The Nottinghamshire Golf And Country Club Ltd,Assets,Current Assets,Covid19 Funding,6219,Addnl Restrictions Grant,13/11/2020,Addnl Restrictions Grant,114887,Assets,FINANCE & CORPORATE SERVICES
7000.00,Chaspurs Ltd,Assets,Current Assets,Covid19 Funding,6219,Addnl Restrictions Grant,13/11/2020,Addnl Restrictions Grant,114909,Assets,FINANCE & CORPORATE SERVICES
7000.00,Griffin Inn Plumtree Limited,Assets,Current Assets,Covid19 Funding,6219,Addnl Restrictions Grant,20/11/2020,Addnl Restrictions Grant,115520,Assets,FINANCE & CORPORATE SERVICES
7000.00,J D Wetherspoon Plc,Assets,Current Assets,Covid19 Funding,6219,Addnl Restrictions Grant,20/11/2020,Addnl Restrictions Grant,115502,Assets,FINANCE & CORPORATE SERVICES
7000.00,J D Wetherspoon Plc,Assets,Current Assets,Covid19 Funding,6219,Addnl Restrictions Grant,20/11/2020,Addnl Restrictions Grant,115503,Assets,FINANCE & CORPORATE SERVICES
7000.00,Lady Bay Inns Ltd,Assets,Current Assets,Covid19 Funding,6219,Addnl Restrictions Grant,13/11/2020,Addnl Restrictions Grant,114880,Assets,FINANCE & CORPORATE SERVICES
7000.00,New World Trading Company (Uk) Limited,Assets,Current Assets,Covid19 Funding,6219,Addnl Restrictions Grant,20/11/2020,Addnl Restrictions Grant,115527,Assets,FINANCE & CORPORATE SERVICES
7000.00,Radcliffe On Trent Golf Club,Assets,Current Assets,Covid19 Funding,6219,Addnl Restrictions Grant,20/11/2020,Addnl Restrictions Grant,115475,Assets,FINANCE & CORPORATE SERVICES
7000.00,Roko Health Clubs Ltd,Assets,Current Assets,Covid19 Funding,6219,Addnl Restrictions Grant,30/11/2020,Addnl Restrictions Grant,116183,Assets,FINANCE & CORPORATE SERVICES
7000.00,Ruddington Grange Golf Club Ltd,Assets,Current Assets,Covid19 Funding,6219,Addnl Restrictions Grant,18/11/2020,Addnl Restrictions Grant,115305,Assets,FINANCE & CORPORATE SERVICES
7000.00,Stanton On The Wolds Golf Club Limited,Assets,Current Assets,Covid19 Funding,6219,Addnl Restrictions Grant,20/11/2020,Addnl Restrictions Grant,115534,Assets,FINANCE & CORPORATE SERVICES
7000.00,The Cat & Wickets Pub Company,Assets,Current Assets,Covid19 Funding,6219,Addnl Restrictions Grant,20/11/2020,Addnl Restrictions Grant,115542,Assets,FINANCE & CORPORATE SERVICES
7000.00,The Moleface Pub Company Llp,Assets,Current Assets,Covid19 Funding,6219,Addnl Restrictions Grant,24/11/2020,Addnl Restrictions Grant,115805,Assets,FINANCE & CORPORATE SERVICES
7000.00,The Plough Inn,Assets,Current Assets,Covid19 Funding,6219,Addnl Restrictions Grant,20/11/2020,Addnl Restrictions Grant,115535,Assets,FINANCE & CORPORATE SERVICES
7000.00,The Pub People Company Ltd,Assets,Current Assets,Covid19 Funding,6219,Addnl Restrictions Grant,26/11/2020,Addnl Restrictions Grant,116015,Assets,FINANCE & CORPORATE SERVICES
7000.00,The Radcliffe Arms Ltd,Assets,Current Assets,Covid19 Funding,6219,Addnl Restrictions Grant,26/11/2020,Addnl Restrictions Grant,115943,Assets,FINANCE & CORPORATE SERVICES
7000.00,The Ruddy Good Pub Company Ltd,Assets,Current Assets,Covid19 Funding,6219,Addnl Restrictions Grant,20/11/2020,Addnl Restrictions Grant,115476,Assets,FINANCE & CORPORATE SERVICES
7000.00,Thorntons Holt Camping Park,Assets,Current Assets,Covid19 Funding,6219,Addnl Restrictions Grant,19/11/2020,Addnl Restrictions Grant,115425,Assets,FINANCE & CORPORATE SERVICES
7000.00,Nottinghamshire County Cricket Club Limited,Assets,Current Assets,Covid19 Funding,6219,Addnl Restrictions Grant,22/12/2020,Addnl Restrictions Grant,117816,Assets,FINANCE & CORPORATE SERVICES
7000.00,The Nottinghamshire Golf And Country Club Ltd,Assets,Current Assets,Covid19 Funding,6219,Addnl Restrictions Grant,22/12/2020,Addnl Restrictions Grant,117833,Assets,FINANCE & CORPORATE SERVICES
7000.00,L H Woodhouse.Co.Uk,Assets,Current Assets,Covid19 Funding,6219,Addnl Restrictions Grant,08/12/2020,Addnl Restrictions Grant,116638,Assets,FINANCE & CORPORATE SERVICES
7000.00,Tynemill Ltd,Assets,Current Assets,Covid19 Funding,6219,Addnl Restrictions Grant,03/12/2020,Addnl Restrictions Grant,116402,Assets,FINANCE & CORPORATE SERVICES
7000.00,Chaspurs Ltd,Assets,Current Assets,Covid19 Funding,6219,Addnl Restrictions Grant,22/12/2020,Addnl Restrictions Grant,117786,Assets,FINANCE & CORPORATE SERVICES
7000.00,Griffin Inn Plumtree Limited,Assets,Current Assets,Covid19 Funding,6219,Addnl Restrictions Grant,22/12/2020,Addnl Restrictions Grant,117789,Assets,FINANCE & CORPORATE SERVICES
7000.00,Lady Bay Inns Ltd,Assets,Current Assets,Covid19 Funding,6219,Addnl Restrictions Grant,22/12/2020,Addnl Restrictions Grant,117797,Assets,FINANCE & CORPORATE SERVICES
7000.00,L H Woodhouse.Co.Uk,Assets,Current Assets,Covid19 Funding,6219,Addnl Restrictions Grant,22/12/2020,Addnl Restrictions Grant,117791,Assets,FINANCE & CORPORATE SERVICES
7000.00,New World Trading Company (Uk) Limited,Assets,Current Assets,Covid19 Funding,6219,Addnl Restrictions Grant,22/12/2020,Addnl Restrictions Grant,117802,Assets,FINANCE & CORPORATE SERVICES
7000.00,Radcliffe On Trent Golf Club,Assets,Current Assets,Covid19 Funding,6219,Addnl Restrictions Grant,22/12/2020,Addnl Restrictions Grant,117819,Assets,FINANCE & CORPORATE SERVICES
7000.00,Roko Health Clubs Ltd,Assets,Current Assets,Covid19 Funding,6219,Addnl Restrictions Grant,22/12/2020,Addnl Restrictions Grant,117821,Assets,FINANCE & CORPORATE SERVICES
7000.00,Ruddington Grange Golf Club Ltd,Assets,Current Assets,Covid19 Funding,6219,Addnl Restrictions Grant,22/12/2020,Addnl Restrictions Grant,117824,Assets,FINANCE & CORPORATE SERVICES
7000.00,Stanton On The Wolds Golf Club Limited,Assets,Current Assets,Covid19 Funding,6219,Addnl Restrictions Grant,22/12/2020,Addnl Restrictions Grant,117827,Assets,FINANCE & CORPORATE SERVICES
7000.00,The Cat & Wickets Pub Company,Assets,Current Assets,Covid19 Funding,6219,Addnl Restrictions Grant,22/12/2020,Addnl Restrictions Grant,117828,Assets,FINANCE & CORPORATE SERVICES
7000.00,The Moleface Pub Company Llp,Assets,Current Assets,Covid19 Funding,6219,Addnl Restrictions Grant,22/12/2020,Addnl Restrictions Grant,117830,Assets,FINANCE & CORPORATE SERVICES
7000.00,The Plough Inn,Assets,Current Assets,Covid19 Funding,6219,Addnl Restrictions Grant,22/12/2020,Addnl Restrictions Grant,117836,Assets,FINANCE & CORPORATE SERVICES
7000.00,The Pub People Company Ltd,Assets,Current Assets,Covid19 Funding,6219,Addnl Restrictions Grant,22/12/2020,Addnl Restrictions Grant,117838,Assets,FINANCE & CORPORATE SERVICES
7000.00,The Radcliffe Arms Ltd,Assets,Current Assets,Covid19 Funding,6219,Addnl Restrictions Grant,22/12/2020,Addnl Restrictions Grant,117841,Assets,FINANCE & CORPORATE SERVICES
7000.00,The Ruddy Good Pub Company Ltd,Assets,Current Assets,Covid19 Funding,6219,Addnl Restrictions Grant,22/12/2020,Addnl Restrictions Grant,117843,Assets,FINANCE & CORPORATE SERVICES
7000.00,Thorntons Holt Camping Park,Assets,Current Assets,Covid19 Funding,6219,Addnl Restrictions Grant,22/12/2020,Addnl Restrictions Grant,117846,Assets,FINANCE & CORPORATE SERVICES
7000.00,Tynemill Ltd,Assets,Current Assets,Covid19 Funding,6219,Addnl Restrictions Grant,22/12/2020,Addnl Restrictions Grant,117847,Assets,FINANCE & CORPORATE SERVICES
6852.00,Granicus Llc,Finance & Corporate Services,"Performance, Repn & Comms",Performance And Reputation,4710,Legal & Professional Services,27/10/2020,Supplies & Services,114028,Finance & Corporate Services,FINANCE & CORPORATE SERVICES
6671.73,Tunstall Response Ltd,Neighbourhoods,Strategic Housing,Home Alarms,1137,Other Services,24/11/2020,Supplies & Services,114708,Neighbourhoods,NEIGHBOURHOODS
6585.00,Apw (Nottm) Ltd,Capital Expenditure,Neighbourhoods,Disabled Facilities Grant,0332,Grants,15/12/2020,Supplies & Services,116817,Capital Expenditure,CAPITAL
6522.05,Egbert H Taylor & Co Ltd,Neighbourhoods,Waste & Fleet Management,Glass Recycling & Bring Sites,8407,Other Equipment/Materials,27/10/2020,Supplies & Services,112157,Neighbourhoods,FINANCE & CORPORATE SERVICES
6470.00,Lodge Tyre Co.Ltd,Neighbourhoods,Waste & Fleet Management,Waste Collection,8403,Tyres,03/12/2020,Transport Related Expenditure,116523,Neighbourhoods,FINANCE & CORPORATE SERVICES
6294.30,Severn Trent Water,Neighbourhoods,Waste & Fleet Management,Tanker Services,1948,Waste Disposal,02/10/2020,Supplies & Services,113358,Neighbourhoods,NEIGHBOURHOODS
6222.00,Via East Midlands Ltd,Communities,Planning Policy,Land Charges,1033,Other Services,26/11/2020,Supplies & Services,115183,Communities,COMMUNITIES
6195.64,Advanced Business Solutions,Finance & Corporate Services,Ict,It Rechargeable Costs,4722,Maintenance Contracts - S&S,18/11/2020,Supplies & Services,114476,Finance & Corporate Services,TRANSFORMATION
6138.03,Notts Police & Crime Commissioner,Transformation,Customer Services,Customer Services,4807,Other Services,13/10/2020,Supplies & Services,113693,Transformation,TRANSFORMATION
6125.00,Blachere Illumination Uk Ltd,Communities,Community Development,West Bridgford Town Centre,1875,Projects & Activities,05/11/2020,Supplies & Services,114214,Communities,TRANSFORMATION
6000.00,Broxtowe Youth Homelessness,Neighbourhoods,Strategic Housing,Homelessness Prevention,1147,Grants,06/10/2020,Supplies & Services,113313,Neighbourhoods,NEIGHBOURHOODS
5927.20,Bt Telephone Payment Centre,Finance & Corporate Services,Ict,It Rechargeable Costs,4722,Maintenance Contracts - S&S,18/12/2020,Supplies & Services,115690,Finance & Corporate Services,TRANSFORMATION
5922.00,New Dec Interiors Ltd,Capital Expenditure,Neighbourhoods,Disabled Facilities Grant,0332,Grants,27/10/2020,Supplies & Services,114236,Capital Expenditure,CAPITAL
5890.00,Total Reclaims Demolition Ltd,Capital Expenditure,Transformation & Innovation,Abbey Road Redevelopment,0312,Contractors-Third Party,10/11/2020,Third Party Payments,114715,Capital Expenditure,CAPITAL
5824.24,The South Wolds Academy And Sixth Form,Neighbourhoods,Leisure Contracts & Car Parks,Leisure Management Contract,1795,Water Charges,02/11/2020,Premises Related Expenditure,114055,Neighbourhoods,FINANCE & CORPORATE SERVICES
5817.00,Carlton Design & Fabrication,Capital Expenditure,Neighbourhoods,Disabled Facilities Grant,0332,Grants,03/11/2020,Supplies & Services,114510,Capital Expenditure,CAPITAL
5710.50,Lodge Tyre Co.Ltd,Neighbourhoods,Waste & Fleet Management,Waste Collection,8403,Tyres,20/10/2020,Transport Related Expenditure,114099,Neighbourhoods,FINANCE & CORPORATE SERVICES
5655.00,Total Bathing,Capital Expenditure,Neighbourhoods,Disabled Facilities Grant,0332,Grants,13/10/2020,Supplies & Services,113845,Capital Expenditure,CAPITAL
5621.74,Severn Trent Water,Capital Expenditure,Transformation & Innovation,Cotgrave Phase 2,0387,Legal & Professional Services,28/10/2020,Supplies & Services,114233,Capital Expenditure,CAPITAL
5445.00,Trent Valley Plumbing & Build,Capital Expenditure,Neighbourhoods,Disabled Facilities Grant,0332,Grants,13/10/2020,Supplies & Services,113844,Capital Expenditure,CAPITAL
5363.40,Thomson Reuters,Transformation,Legal,Legal Services,4701,Books & Publications,20/11/2020,Supplies & Services,114657,Transformation,FINANCE & CORPORATE SERVICES
5319.00,Lodge Tyre Co.Ltd,Neighbourhoods,Waste & Fleet Management,Waste Collection,8403,Tyres,10/11/2020,Transport Related Expenditure,114660,Neighbourhoods,FINANCE & CORPORATE SERVICES
5306.00,Geldards Llp,Capital Expenditure,Transformation & Innovation,Abbey Road Redevelopment,0312,Legal & Professional Services,20/10/2020,Supplies & Services,113866,Capital Expenditure,CAPITAL
5269.00,Trent Valley Plumbing & Build,Capital Expenditure,Neighbourhoods,Disabled Facilities Grant,0332,Grants,10/11/2020,Supplies & Services,114669,Capital Expenditure,CAPITAL
5266.00,Trent Valley Plumbing & Build,Capital Expenditure,Neighbourhoods,Disabled Facilities Grant,0332,Grants,02/10/2020,Supplies & Services,113607,Capital Expenditure,CAPITAL
5250.00,Ade Regeneration,Capital Expenditure,Transformation & Innovation,Bingham Leisure Hub,0314,Legal & Professional Services,16/12/2020,Supplies & Services,116162,Capital Expenditure,TRANSFORMATION
5231.10,Frontline Recruitment Ltd,Neighbourhoods,Waste & Fleet Management,Waste Collection,8403,Agency Staff,28/10/2020,Employee Related Expenditure,114109,Neighbourhoods,FINANCE & CORPORATE SERVICES
5213.28,Severn Trent Water,Neighbourhoods,Waste & Fleet Management,Tanker Services,1948,Waste Disposal,02/10/2020,Supplies & Services,112258,Neighbourhoods,NEIGHBOURHOODS
5100.00,M.R.J.Faulks & Son Ltd,Communities,Community Development,Rushcliffe Country Park,1375,Maintenance Contracts - S&S,08/12/2020,Supplies & Services,115926,Communities,COMMUNITIES
5061.37,Frontline Recruitment Ltd,Neighbourhoods,Waste & Fleet Management,Waste Collection,8403,Agency Staff,10/11/2020,Employee Related Expenditure,114512,Neighbourhoods,FINANCE & CORPORATE SERVICES
5041.90,Frontline Recruitment Ltd,Neighbourhoods,Waste & Fleet Management,Waste Collection,8403,Agency Staff,30/11/2020,Employee Related Expenditure,114723,Neighbourhoods,FINANCE & CORPORATE SERVICES
4982.75,Severn Trent Water,Neighbourhoods,Waste & Fleet Management,Tanker Services,1948,Waste Disposal,14/12/2020,Supplies & Services,115178,Neighbourhoods,NEIGHBOURHOODS
4962.80,Hill Bros (Nottingham) Ltd,Capital Expenditure,Neighbourhoods,Disabled Facilities Grant,0332,Grants,15/12/2020,Supplies & Services,116807,Capital Expenditure,CAPITAL
4908.84,Toot Hill School,Neighbourhoods,Leisure Contracts & Car Parks,Leisure Management Contract,1795,Electricity,05/11/2020,Premises Related Expenditure,114331,Neighbourhoods,FINANCE & CORPORATE SERVICES
4900.00,Commercial Surface Solutions Ltd,Transformation,Property Services,Land Holdings,1884,Responsive Works - Buildings,01/12/2020,Premises Related Expenditure,116307,Transformation,TRANSFORMATION
4864.00,Team Netsol Limited,Finance & Corporate Services,Ict,It Rechargeable Costs,4722,Maintenance Contracts - S&S,19/11/2020,Supplies & Services,114505,Finance & Corporate Services,TRANSFORMATION
4799.81,Frontline Recruitment Ltd,Neighbourhoods,Waste & Fleet Management,Waste Collection,8403,Agency Staff,02/10/2020,Employee Related Expenditure,113642,Neighbourhoods,FINANCE & CORPORATE SERVICES
4750.00,Cornerstone Barristers,Neighbourhoods,Environmental Health,Health And Safety,1059,Legal & Professional Services,27/10/2020,Supplies & Services,114376,Neighbourhoods,NEIGHBOURHOODS
4670.36,Severn Trent Water,Neighbourhoods,Waste & Fleet Management,Tanker Services,1948,Waste Disposal,10/11/2020,Supplies & Services,114350,Neighbourhoods,NEIGHBOURHOODS
4661.83,The National Leaflet Company,Finance & Corporate Services,"Performance, Repn & Comms",Performance And Reputation,4710,Other Services,15/12/2020,Supplies & Services,116440,Finance & Corporate Services,FINANCE & CORPORATE SERVICES
4660.69,Frontline Recruitment Ltd,Neighbourhoods,Waste & Fleet Management,Waste Collection,8403,Agency Staff,28/10/2020,Employee Related Expenditure,114347,Neighbourhoods,FINANCE & CORPORATE SERVICES
4635.28,Streetwise Environmental Ltd           1,Communities,Community Development,Parks & Playing Fields-Gen,8910,Responsive Works - Buildings,20/10/2020,Premises Related Expenditure,112751,Communities,FINANCE & CORPORATE SERVICES
4546.61,Frontline Recruitment Ltd,Neighbourhoods,Waste & Fleet Management,Waste Collection,8403,Agency Staff,20/10/2020,Employee Related Expenditure,113847,Neighbourhoods,FINANCE & CORPORATE SERVICES
4531.25,Mti Technology Ltd,Finance & Corporate Services,Ict,It Rechargeable Costs,4722,Cyber Security,02/10/2020,Supplies & Services,112806,Finance & Corporate Services,TRANSFORMATION
4500.00,Alliance Flood Solutions Ltd,Assets,Current Assets,Defra Flood Support Scheme,5227,Grants,14/12/2020,Supplies & Services,115139,Assets,NEIGHBOURHOODS
4500.00,Alliance Flood Solutions Ltd,Assets,Current Assets,Defra Flood Support Scheme,5227,Grants,14/12/2020,Supplies & Services,115899,Assets,NEIGHBOURHOODS
4500.00,M3 Global Flood Technologies Ltd,Assets,Current Assets,Defra Flood Support Scheme,5227,Grants,14/12/2020,Supplies & Services,116532,Assets,NEIGHBOURHOODS
4500.00,M3 Global Flood Technologies Ltd,Assets,Current Assets,Defra Flood Support Scheme,5227,Grants,14/12/2020,Supplies & Services,116533,Assets,NEIGHBOURHOODS
4500.00,M3 Global Flood Technologies Ltd,Assets,Current Assets,Defra Flood Support Scheme,5227,Grants,18/12/2020,Supplies & Services,116814,Assets,NEIGHBOURHOODS
4439.76,Cash & Carry Windows,Capital Expenditure,Neighbourhoods,Hound Lodge Annexe Patio Doors,0340,Contractors-Third Party,01/12/2020,Third Party Payments,115190,Capital Expenditure,COMMUNITIES
4400.00,Emec Ecology,Communities,Community Development,Environmental Promotion,1590,Legal & Professional Services,05/11/2020,Supplies & Services,114221,Communities,COMMUNITIES
4344.00,Ope Med Care Ltd,Capital Expenditure,Neighbourhoods,Disabled Facilities Grant,0332,Grants,16/12/2020,Supplies & Services,116808,Capital Expenditure,CAPITAL
4307.33,Frontline Recruitment Ltd,Neighbourhoods,Waste & Fleet Management,Waste Collection,8403,Agency Staff,15/12/2020,Employee Related Expenditure,116770,Neighbourhoods,FINANCE & CORPORATE SERVICES
4268.74,Severn Trent Water,Capital Expenditure,Transformation & Innovation,Cotgrave Phase 2,0387,Legal & Professional Services,20/10/2020,Supplies & Services,114124,Capital Expenditure,CAPITAL
4140.36,Frontline Recruitment Ltd,Neighbourhoods,Waste & Fleet Management,Waste Collection,8403,Agency Staff,30/11/2020,Employee Related Expenditure,115175,Neighbourhoods,FINANCE & CORPORATE SERVICES
4085.38,Trent Valley Plumbing & Build,Capital Expenditure,Neighbourhoods,Disabled Facilities Grant,0332,Grants,27/10/2020,Supplies & Services,114235,Capital Expenditure,CAPITAL
4050.00,Retail Associated Services Ltd,Transformation,Economic Regeneration,High Streets Safely,1881,Legal & Professional Services,13/11/2020,Supplies & Services,114468,Transformation,TRANSFORMATION
4042.99,Frontline Recruitment Ltd,Neighbourhoods,Waste & Fleet Management,Waste Collection,8403,Training Expenses,15/12/2020,Employee Related Expenditure,116530,Neighbourhoods,FINANCE & CORPORATE SERVICES
4000.00,Nottingham Raceway Karting (2010) Ltd,Assets,Current Assets,Covid19 Funding,6219,Addnl Restrictions Grant,30/11/2020,Addnl Restrictions Grant,116206,Assets,FINANCE & CORPORATE SERVICES
4000.00,Nottinghamshire Sports Club Limited,Assets,Current Assets,Covid19 Funding,6219,Addnl Restrictions Grant,18/11/2020,Addnl Restrictions Grant,115254,Assets,FINANCE & CORPORATE SERVICES
4000.00,The Washroom Nottingham Ltd,Assets,Current Assets,Covid19 Funding,6219,Addnl Restrictions Grant,26/11/2020,Addnl Restrictions Grant,115976,Assets,FINANCE & CORPORATE SERVICES
4000.00,Soothe Limited,Transformation,Economic Regeneration,Economic Development,1887,Grants,28/10/2020,Supplies & Services,114324,Transformation,TRANSFORMATION
4000.00,24a Central Avenue Lts,Assets,Current Assets,Covid19 Funding,6219,Addnl Restrictions Grant,20/11/2020,Addnl Restrictions Grant,115492,Assets,FINANCE & CORPORATE SERVICES
4000.00,888 Vapour Ltd,Assets,Current Assets,Covid19 Funding,6219,Addnl Restrictions Grant,26/11/2020,Addnl Restrictions Grant,116005,Assets,FINANCE & CORPORATE SERVICES
4000.00,Aaaf Properties Ltd (Blotts Country Club),Assets,Current Assets,Covid19 Funding,6219,Addnl Restrictions Grant,20/11/2020,Addnl Restrictions Grant,115499,Assets,FINANCE & CORPORATE SERVICES
4000.00,A&A Pub Company,Assets,Current Assets,Covid19 Funding,6219,Addnl Restrictions Grant,18/11/2020,Addnl Restrictions Grant,115303,Assets,FINANCE & CORPORATE SERVICES
4000.00,A&S Greenway T/A Number 8 Delicatessen,Assets,Current Assets,Covid19 Funding,6219,Addnl Restrictions Grant,26/11/2020,Addnl Restrictions Grant,115978,Assets,FINANCE & CORPORATE SERVICES
4000.00,Ashmores Restaurant,Assets,Current Assets,Covid19 Funding,6219,Addnl Restrictions Grant,20/11/2020,Addnl Restrictions Grant,115522,Assets,FINANCE & CORPORATE SERVICES
4000.00,Aspire 4 Fitness Ltd,Assets,Current Assets,Covid19 Funding,6219,Addnl Restrictions Grant,24/11/2020,Addnl Restrictions Grant,115743,Assets,FINANCE & CORPORATE SERVICES
4000.00,Baresca Tapas Limited,Assets,Current Assets,Covid19 Funding,6219,Addnl Restrictions Grant,20/11/2020,Addnl Restrictions Grant,115483,Assets,FINANCE & CORPORATE SERVICES
4000.00,Beauty Temple (Nottm) Limited,Assets,Current Assets,Covid19 Funding,6219,Addnl Restrictions Grant,18/11/2020,Addnl Restrictions Grant,115236,Assets,FINANCE & CORPORATE SERVICES
4000.00,Birchover Residences Limited,Assets,Current Assets,Covid19 Funding,6219,Addnl Restrictions Grant,24/11/2020,Addnl Restrictions Grant,115747,Assets,FINANCE & CORPORATE SERVICES
4000.00,British Parachute Schools Ltd,Assets,Current Assets,Covid19 Funding,6219,Addnl Restrictions Grant,18/11/2020,Addnl Restrictions Grant,115292,Assets,FINANCE & CORPORATE SERVICES
4000.00,Charde & Co. Ltd,Assets,Current Assets,Covid19 Funding,6219,Addnl Restrictions Grant,30/11/2020,Addnl Restrictions Grant,116190,Assets,FINANCE & CORPORATE SERVICES
4000.00,Chubby Pub Company Ltd,Assets,Current Assets,Covid19 Funding,6219,Addnl Restrictions Grant,19/11/2020,Addnl Restrictions Grant,115252,Assets,FINANCE & CORPORATE SERVICES
4000.00,Consortia Network Ltd,Assets,Current Assets,Covid19 Funding,6219,Addnl Restrictions Grant,20/11/2020,Addnl Restrictions Grant,115518,Assets,FINANCE & CORPORATE SERVICES
4000.00,Copper Wb,Assets,Current Assets,Covid19 Funding,6219,Addnl Restrictions Grant,13/11/2020,Addnl Restrictions Grant,114896,Assets,FINANCE & CORPORATE SERVICES
4000.00,Cotgrave Welfare Scheme & Institute,Assets,Current Assets,Covid19 Funding,6219,Addnl Restrictions Grant,19/11/2020,Addnl Restrictions Grant,115423,Assets,FINANCE & CORPORATE SERVICES
4000.00,Country Club Caterers/Earl Of Chesterfield Pu,Assets,Current Assets,Covid19 Funding,6219,Addnl Restrictions Grant,16/11/2020,Addnl Restrictions Grant,115042,Assets,FINANCE & CORPORATE SERVICES
4000.00,Crystal Lillies Restaurant,Assets,Current Assets,Covid19 Funding,6219,Addnl Restrictions Grant,26/11/2020,Addnl Restrictions Grant,115968,Assets,FINANCE & CORPORATE SERVICES
4000.00,Cucamara T/A Wellingtons Cafe,Assets,Current Assets,Covid19 Funding,6219,Addnl Restrictions Grant,24/11/2020,Addnl Restrictions Grant,115753,Assets,FINANCE & CORPORATE SERVICES
4000.00,Cuzina Limited,Assets,Current Assets,Covid19 Funding,6219,Addnl Restrictions Grant,13/11/2020,Addnl Restrictions Grant,114886,Assets,FINANCE & CORPORATE SERVICES
4000.00,Delhi Nights Limited,Assets,Current Assets,Covid19 Funding,6219,Addnl Restrictions Grant,24/11/2020,Addnl Restrictions Grant,115806,Assets,FINANCE & CORPORATE SERVICES
4000.00,Distinctive Inns Ltd,Assets,Current Assets,Covid19 Funding,6219,Addnl Restrictions Grant,20/11/2020,Addnl Restrictions Grant,115498,Assets,FINANCE & CORPORATE SERVICES
4000.00,Dovecote Farm Equestrian Centre,Assets,Current Assets,Covid19 Funding,6219,Addnl Restrictions Grant,18/11/2020,Addnl Restrictions Grant,115319,Assets,FINANCE & CORPORATE SERVICES
4000.00,Elysian Parlour,Assets,Current Assets,Covid19 Funding,6219,Addnl Restrictions Grant,16/11/2020,Addnl Restrictions Grant,115001,Assets,FINANCE & CORPORATE SERVICES
4000.00,Estilo (West Bridgford) Limited,Assets,Current Assets,Covid19 Funding,6219,Addnl Restrictions Grant,16/11/2020,Addnl Restrictions Grant,115000,Assets,FINANCE & CORPORATE SERVICES
4000.00,Fairly Trading Limited,Assets,Current Assets,Covid19 Funding,6219,Addnl Restrictions Grant,16/11/2020,Addnl Restrictions Grant,114996,Assets,FINANCE & CORPORATE SERVICES
4000.00,Frances Russell Ta White Rabbit Teahouse,Assets,Current Assets,Covid19 Funding,6219,Addnl Restrictions Grant,20/11/2020,Addnl Restrictions Grant,115540,Assets,FINANCE & CORPORATE SERVICES
4000.00,Good Table & Cheer Ltd,Assets,Current Assets,Covid19 Funding,6219,Addnl Restrictions Grant,20/11/2020,Addnl Restrictions Grant,115486,Assets,FINANCE & CORPORATE SERVICES
4000.00,Great Northern Bars Ltd,Assets,Current Assets,Covid19 Funding,6219,Addnl Restrictions Grant,16/11/2020,Addnl Restrictions Grant,115033,Assets,FINANCE & CORPORATE SERVICES
4000.00,Great Northern Refinery Ltd,Assets,Current Assets,Covid19 Funding,6219,Addnl Restrictions Grant,16/11/2020,Addnl Restrictions Grant,115010,Assets,FINANCE & CORPORATE SERVICES
4000.00,Grumpy Joes Ltd,Assets,Current Assets,Covid19 Funding,6219,Addnl Restrictions Grant,24/11/2020,Addnl Restrictions Grant,115797,Assets,FINANCE & CORPORATE SERVICES
4000.00,Gusto Restaurants Uk Ltd,Assets,Current Assets,Covid19 Funding,6219,Addnl Restrictions Grant,30/11/2020,Addnl Restrictions Grant,116184,Assets,FINANCE & CORPORATE SERVICES
4000.00,Harvey And Coombes Pub Company,Assets,Current Assets,Covid19 Funding,6219,Addnl Restrictions Grant,20/11/2020,Addnl Restrictions Grant,115541,Assets,FINANCE & CORPORATE SERVICES
4000.00,Henry Brewer Gallery Limited,Assets,Current Assets,Covid19 Funding,6219,Addnl Restrictions Grant,16/11/2020,Addnl Restrictions Grant,115029,Assets,FINANCE & CORPORATE SERVICES
4000.00,Hillary And Scott Ltd,Assets,Current Assets,Covid19 Funding,6219,Addnl Restrictions Grant,24/11/2020,Addnl Restrictions Grant,115790,Assets,FINANCE & CORPORATE SERVICES
4000.00,Home Farm Livery,Assets,Current Assets,Covid19 Funding,6219,Addnl Restrictions Grant,18/11/2020,Addnl Restrictions Grant,115249,Assets,FINANCE & CORPORATE SERVICES
4000.00,Inspirations West Bridgford Ltd,Assets,Current Assets,Covid19 Funding,6219,Addnl Restrictions Grant,20/11/2020,Addnl Restrictions Grant,115525,Assets,FINANCE & CORPORATE SERVICES
4000.00,Joshua Tree Ltd,Assets,Current Assets,Covid19 Funding,6219,Addnl Restrictions Grant,16/11/2020,Addnl Restrictions Grant,115054,Assets,FINANCE & CORPORATE SERVICES
4000.00,Kalex Cafe Limited,Assets,Current Assets,Covid19 Funding,6219,Addnl Restrictions Grant,26/11/2020,Addnl Restrictions Grant,116025,Assets,FINANCE & CORPORATE SERVICES
4000.00,Keyworth Enterprises Ltd,Assets,Current Assets,Covid19 Funding,6219,Addnl Restrictions Grant,18/11/2020,Addnl Restrictions Grant,115279,Assets,FINANCE & CORPORATE SERVICES
4000.00,Lees & Wilson Holdings Ltd,Assets,Current Assets,Covid19 Funding,6219,Addnl Restrictions Grant,30/11/2020,Addnl Restrictions Grant,116209,Assets,FINANCE & CORPORATE SERVICES
4000.00,Lovely Local Ltd,Assets,Current Assets,Covid19 Funding,6219,Addnl Restrictions Grant,20/11/2020,Addnl Restrictions Grant,115472,Assets,FINANCE & CORPORATE SERVICES
4000.00,Md Sports Ltd,Assets,Current Assets,Covid19 Funding,6219,Addnl Restrictions Grant,20/11/2020,Addnl Restrictions Grant,115515,Assets,FINANCE & CORPORATE SERVICES
4000.00,Michael Peterson Ltd,Assets,Current Assets,Covid19 Funding,6219,Addnl Restrictions Grant,18/11/2020,Addnl Restrictions Grant,115294,Assets,FINANCE & CORPORATE SERVICES
4000.00,Mwa Events Ltd,Assets,Current Assets,Covid19 Funding,6219,Addnl Restrictions Grant,18/11/2020,Addnl Restrictions Grant,115272,Assets,FINANCE & CORPORATE SERVICES
4000.00,Nags Head,Assets,Current Assets,Covid19 Funding,6219,Addnl Restrictions Grant,26/11/2020,Addnl Restrictions Grant,116012,Assets,FINANCE & CORPORATE SERVICES
4000.00,Perkins Bar & Bistro,Assets,Current Assets,Covid19 Funding,6219,Addnl Restrictions Grant,20/11/2020,Addnl Restrictions Grant,115487,Assets,FINANCE & CORPORATE SERVICES
4000.00,Premier Pets Hotel Limited,Assets,Current Assets,Covid19 Funding,6219,Addnl Restrictions Grant,16/11/2020,Addnl Restrictions Grant,115021,Assets,FINANCE & CORPORATE SERVICES
4000.00,Really Good Pubs Ltd,Assets,Current Assets,Covid19 Funding,6219,Addnl Restrictions Grant,13/11/2020,Addnl Restrictions Grant,114893,Assets,FINANCE & CORPORATE SERVICES
4000.00,Rushcliffe Golf Club,Assets,Current Assets,Covid19 Funding,6219,Addnl Restrictions Grant,20/11/2020,Addnl Restrictions Grant,115530,Assets,FINANCE & CORPORATE SERVICES
4000.00,Saks Hair & Beauty,Assets,Current Assets,Covid19 Funding,6219,Addnl Restrictions Grant,18/11/2020,Addnl Restrictions Grant,115253,Assets,FINANCE & CORPORATE SERVICES
4000.00,Shapers2018 Limited,Assets,Current Assets,Covid19 Funding,6219,Addnl Restrictions Grant,20/11/2020,Addnl Restrictions Grant,115529,Assets,FINANCE & CORPORATE SERVICES
4000.00,Silex Pubs Ltd,Assets,Current Assets,Covid19 Funding,6219,Addnl Restrictions Grant,13/11/2020,Addnl Restrictions Grant,114894,Assets,FINANCE & CORPORATE SERVICES
4000.00,Soothe Limited,Assets,Current Assets,Covid19 Funding,6219,Addnl Restrictions Grant,24/11/2020,Addnl Restrictions Grant,115799,Assets,FINANCE & CORPORATE SERVICES
4000.00,Spencers Of Car Colston Ltd T/A The Royal Oak,Assets,Current Assets,Covid19 Funding,6219,Addnl Restrictions Grant,16/11/2020,Addnl Restrictions Grant,115013,Assets,FINANCE & CORPORATE SERVICES
4000.00,The Beer Consortium Ltd (Horse & Plough),Assets,Current Assets,Covid19 Funding,6219,Addnl Restrictions Grant,18/11/2020,Addnl Restrictions Grant,115306,Assets,FINANCE & CORPORATE SERVICES
4000.00,The Bridgford Salon  (Hair Scene),Assets,Current Assets,Covid19 Funding,6219,10k Business Grants,20/11/2020,10k Business Grants,115495,Assets,FINANCE & CORPORATE SERVICES
4000.00,The Chequers Inn,Assets,Current Assets,Covid19 Funding,6219,Addnl Restrictions Grant,20/11/2020,Addnl Restrictions Grant,115536,Assets,FINANCE & CORPORATE SERVICES
4000.00,The Curtain Pole Trading As Cp Interiors,Assets,Current Assets,Covid19 Funding,6219,Addnl Restrictions Grant,26/11/2020,Addnl Restrictions Grant,115964,Assets,FINANCE & CORPORATE SERVICES
4000.00,The Fitness Collective Ltd,Assets,Current Assets,Covid19 Funding,6219,Addnl Restrictions Grant,16/11/2020,Addnl Restrictions Grant,114997,Assets,FINANCE & CORPORATE SERVICES
4000.00,The Key Health Club,Assets,Current Assets,Covid19 Funding,6219,Addnl Restrictions Grant,13/11/2020,Addnl Restrictions Grant,114904,Assets,FINANCE & CORPORATE SERVICES
4000.00,The Martin Arms Inn,Assets,Current Assets,Covid19 Funding,6219,Addnl Restrictions Grant,16/11/2020,Addnl Restrictions Grant,114990,Assets,FINANCE & CORPORATE SERVICES
4000.00,The Pub People Company Ltd,Assets,Current Assets,Covid19 Funding,6219,Addnl Restrictions Grant,26/11/2020,Addnl Restrictions Grant,116006,Assets,FINANCE & CORPORATE SERVICES
4000.00,The Pub People Company Ltd,Assets,Current Assets,Covid19 Funding,6219,Addnl Restrictions Grant,26/11/2020,Addnl Restrictions Grant,116016,Assets,FINANCE & CORPORATE SERVICES
4000.00,The Real Salon,Assets,Current Assets,Covid19 Funding,6219,Addnl Restrictions Grant,20/11/2020,Addnl Restrictions Grant,115466,Assets,FINANCE & CORPORATE SERVICES
4000.00,The Unicorns Head,Assets,Current Assets,Covid19 Funding,6219,Addnl Restrictions Grant,13/11/2020,Addnl Restrictions Grant,114869,Assets,FINANCE & CORPORATE SERVICES
4000.00,The Wheatsheaf Bingham,Assets,Current Assets,Covid19 Funding,6219,Addnl Restrictions Grant,24/11/2020,Addnl Restrictions Grant,115733,Assets,FINANCE & CORPORATE SERVICES
4000.00,Three Crowns,Assets,Current Assets,Covid19 Funding,6219,Addnl Restrictions Grant,13/11/2020,Addnl Restrictions Grant,114879,Assets,FINANCE & CORPORATE SERVICES
4000.00,Tipsy Trex Ltd,Assets,Current Assets,Covid19 Funding,6219,Addnl Restrictions Grant,26/11/2020,Addnl Restrictions Grant,115969,Assets,FINANCE & CORPORATE SERVICES
4000.00,Venezia (Catering) Ltd,Assets,Current Assets,Covid19 Funding,6219,Addnl Restrictions Grant,18/11/2020,Addnl Restrictions Grant,115284,Assets,FINANCE & CORPORATE SERVICES
4000.00,Waterside Bar Kitchen,Assets,Current Assets,Covid19 Funding,6219,Addnl Restrictions Grant,16/11/2020,Addnl Restrictions Grant,114989,Assets,FINANCE & CORPORATE SERVICES
4000.00,West Bridgford Machine Co Ltd  Trophymaster,Assets,Current Assets,Covid19 Funding,6219,Addnl Restrictions Grant,13/11/2020,Addnl Restrictions Grant,114899,Assets,FINANCE & CORPORATE SERVICES
4000.00,West Bridgford Masonic Club Ltd,Assets,Current Assets,Covid19 Funding,6219,Addnl Restrictions Grant,20/11/2020,Addnl Restrictions Grant,115526,Assets,FINANCE & CORPORATE SERVICES
4000.00,West Bridgford Sports Club,Assets,Current Assets,Covid19 Funding,6219,Addnl Restrictions Grant,20/11/2020,Addnl Restrictions Grant,115513,Assets,FINANCE & CORPORATE SERVICES
4000.00,Wysall Plough Ltd,Assets,Current Assets,Covid19 Funding,6219,Addnl Restrictions Grant,13/11/2020,Addnl Restrictions Grant,114903,Assets,FINANCE & CORPORATE SERVICES
4000.00,Yb Central Ltd,Assets,Current Assets,Covid19 Funding,6219,Addnl Restrictions Grant,18/11/2020,Addnl Restrictions Grant,115282,Assets,FINANCE & CORPORATE SERVICES
4000.00,Yjr Bridgford Ltd,Assets,Current Assets,Covid19 Funding,6219,Addnl Restrictions Grant,13/11/2020,Addnl Restrictions Grant,114902,Assets,FINANCE & CORPORATE SERVICES
4000.00,Zinc Bar Ltd,Assets,Current Assets,Covid19 Funding,6219,Addnl Restrictions Grant,26/11/2020,Addnl Restrictions Grant,115963,Assets,FINANCE & CORPORATE SERVICES
4000.00,Sharpe & Sons (Nottingham) Limtied,Assets,Current Assets,Covid19 Funding,6219,Addnl Restrictions Grant,08/12/2020,Addnl Restrictions Grant,116625,Assets,FINANCE & CORPORATE SERVICES
4000.00,Nottingham Raceway Karting (2010) Ltd,Assets,Current Assets,Covid19 Funding,6219,Addnl Restrictions Grant,22/12/2020,Addnl Restrictions Grant,117757,Assets,FINANCE & CORPORATE SERVICES
4000.00,Nottinghamshire Sports Club Limited,Assets,Current Assets,Covid19 Funding,6219,Addnl Restrictions Grant,22/12/2020,Addnl Restrictions Grant,117761,Assets,FINANCE & CORPORATE SERVICES
4000.00,Sharpe & Sons (Nottingham) Limtied,Assets,Current Assets,Covid19 Funding,6219,Addnl Restrictions Grant,22/12/2020,Addnl Restrictions Grant,117777,Assets,FINANCE & CORPORATE SERVICES
4000.00,The Washroom Nottingham Ltd,Assets,Current Assets,Covid19 Funding,6219,Addnl Restrictions Grant,22/12/2020,Addnl Restrictions Grant,117811,Assets,FINANCE & CORPORATE SERVICES
4000.00,Bertieblue Pub Co Ltd,Assets,Current Assets,Covid19 Funding,6219,Addnl Restrictions Grant,02/12/2020,Addnl Restrictions Grant,116372,Assets,FINANCE & CORPORATE SERVICES
4000.00,Caspian Kennels & Cattery,Assets,Current Assets,Covid19 Funding,6219,Addnl Restrictions Grant,08/12/2020,Addnl Restrictions Grant,116632,Assets,FINANCE & CORPORATE SERVICES
4000.00,Inflatable World Leisure Ltd,Assets,Current Assets,Covid19 Funding,6219,Addnl Restrictions Grant,08/12/2020,Addnl Restrictions Grant,116636,Assets,FINANCE & CORPORATE SERVICES
4000.00,Ktmrestaurant Ltd,Assets,Current Assets,Covid19 Funding,6219,Addnl Restrictions Grant,08/12/2020,Addnl Restrictions Grant,116618,Assets,FINANCE & CORPORATE SERVICES
4000.00,Paklands Holdings Ltd,Assets,Current Assets,Covid19 Funding,6219,Addnl Restrictions Grant,08/12/2020,Addnl Restrictions Grant,116623,Assets,FINANCE & CORPORATE SERVICES
4000.00,Pop Shop Collaborative Ltd,Assets,Current Assets,Covid19 Funding,6219,Addnl Restrictions Grant,08/12/2020,Addnl Restrictions Grant,116624,Assets,FINANCE & CORPORATE SERVICES
4000.00,The Bay Therapy Centre Ltd,Assets,Current Assets,Covid19 Funding,6219,Addnl Restrictions Grant,01/12/2020,Addnl Restrictions Grant,116326,Assets,FINANCE & CORPORATE SERVICES
4000.00,Wolds Pub Co Ltd,Assets,Current Assets,Covid19 Funding,6219,Addnl Restrictions Grant,08/12/2020,Addnl Restrictions Grant,116634,Assets,FINANCE & CORPORATE SERVICES
4000.00,24a Central Avenue Lts,Assets,Current Assets,Covid19 Funding,6219,Addnl Restrictions Grant,22/12/2020,Addnl Restrictions Grant,117607,Assets,FINANCE & CORPORATE SERVICES
4000.00,888 Vapour Ltd,Assets,Current Assets,Covid19 Funding,6219,Addnl Restrictions Grant,22/12/2020,Addnl Restrictions Grant,117609,Assets,FINANCE & CORPORATE SERVICES
4000.00,Aaaf Properties Ltd (Blotts Country Club),Assets,Current Assets,Covid19 Funding,6219,Addnl Restrictions Grant,22/12/2020,Addnl Restrictions Grant,117615,Assets,FINANCE & CORPORATE SERVICES
4000.00,A&A Pub Company,Assets,Current Assets,Covid19 Funding,6219,Addnl Restrictions Grant,22/12/2020,Addnl Restrictions Grant,117611,Assets,FINANCE & CORPORATE SERVICES
4000.00,A&S Greenway T/A Number 8 Delicatessen,Assets,Current Assets,Covid19 Funding,6219,Addnl Restrictions Grant,22/12/2020,Addnl Restrictions Grant,117614,Assets,FINANCE & CORPORATE SERVICES
4000.00,Ashmores Restaurant,Assets,Current Assets,Covid19 Funding,6219,Addnl Restrictions Grant,22/12/2020,Addnl Restrictions Grant,117618,Assets,FINANCE & CORPORATE SERVICES
4000.00,Aspire 4 Fitness Ltd,Assets,Current Assets,Covid19 Funding,6219,Addnl Restrictions Grant,22/12/2020,Addnl Restrictions Grant,117620,Assets,FINANCE & CORPORATE SERVICES
4000.00,Baresca Tapas Limited,Assets,Current Assets,Covid19 Funding,6219,Addnl Restrictions Grant,22/12/2020,Addnl Restrictions Grant,117622,Assets,FINANCE & CORPORATE SERVICES
4000.00,Beauty Temple (Nottm) Limited,Assets,Current Assets,Covid19 Funding,6219,Addnl Restrictions Grant,22/12/2020,Addnl Restrictions Grant,117624,Assets,FINANCE & CORPORATE SERVICES
4000.00,Bertieblue Pub Co Ltd,Assets,Current Assets,Covid19 Funding,6219,Addnl Restrictions Grant,22/12/2020,Addnl Restrictions Grant,117626,Assets,FINANCE & CORPORATE SERVICES
4000.00,Birchover Residences Limited,Assets,Current Assets,Covid19 Funding,6219,Addnl Restrictions Grant,22/12/2020,Addnl Restrictions Grant,117629,Assets,FINANCE & CORPORATE SERVICES
4000.00,British Parachute Schools Ltd,Assets,Current Assets,Covid19 Funding,6219,Addnl Restrictions Grant,22/12/2020,Addnl Restrictions Grant,117631,Assets,FINANCE & CORPORATE SERVICES
4000.00,Caspian Kennels & Cattery,Assets,Current Assets,Covid19 Funding,6219,Addnl Restrictions Grant,22/12/2020,Addnl Restrictions Grant,117633,Assets,FINANCE & CORPORATE SERVICES
4000.00,Charde & Co. Ltd,Assets,Current Assets,Covid19 Funding,6219,Addnl Restrictions Grant,22/12/2020,Addnl Restrictions Grant,117635,Assets,FINANCE & CORPORATE SERVICES
4000.00,Chubby Pub Company Ltd,Assets,Current Assets,Covid19 Funding,6219,Addnl Restrictions Grant,22/12/2020,Addnl Restrictions Grant,117637,Assets,FINANCE & CORPORATE SERVICES
4000.00,Consortia Network Ltd,Assets,Current Assets,Covid19 Funding,6219,Addnl Restrictions Grant,22/12/2020,Addnl Restrictions Grant,117639,Assets,FINANCE & CORPORATE SERVICES
4000.00,Copper Wb,Assets,Current Assets,Covid19 Funding,6219,Addnl Restrictions Grant,22/12/2020,Addnl Restrictions Grant,117641,Assets,FINANCE & CORPORATE SERVICES
4000.00,Cotgrave Welfare Scheme & Institute,Assets,Current Assets,Covid19 Funding,6219,Addnl Restrictions Grant,22/12/2020,Addnl Restrictions Grant,117656,Assets,FINANCE & CORPORATE SERVICES
4000.00,Country Club Caterers/Earl Of Chesterfield Pu,Assets,Current Assets,Covid19 Funding,6219,Addnl Restrictions Grant,22/12/2020,Addnl Restrictions Grant,117659,Assets,FINANCE & CORPORATE SERVICES
4000.00,Crystal Lillies Restaurant,Assets,Current Assets,Covid19 Funding,6219,Addnl Restrictions Grant,22/12/2020,Addnl Restrictions Grant,117661,Assets,FINANCE & CORPORATE SERVICES
4000.00,Cucamara T/A Wellingtons Cafe,Assets,Current Assets,Covid19 Funding,6219,Addnl Restrictions Grant,22/12/2020,Addnl Restrictions Grant,117665,Assets,FINANCE & CORPORATE SERVICES
4000.00,Cuzina Limited,Assets,Current Assets,Covid19 Funding,6219,Addnl Restrictions Grant,22/12/2020,Addnl Restrictions Grant,117667,Assets,FINANCE & CORPORATE SERVICES
4000.00,Delhi Nights Limited,Assets,Current Assets,Covid19 Funding,6219,Addnl Restrictions Grant,22/12/2020,Addnl Restrictions Grant,117671,Assets,FINANCE & CORPORATE SERVICES
4000.00,Distinctive Inns Ltd,Assets,Current Assets,Covid19 Funding,6219,Addnl Restrictions Grant,22/12/2020,Addnl Restrictions Grant,117675,Assets,FINANCE & CORPORATE SERVICES
4000.00,Dovecote Farm Equestrian Centre,Assets,Current Assets,Covid19 Funding,6219,Addnl Restrictions Grant,22/12/2020,Addnl Restrictions Grant,117680,Assets,FINANCE & CORPORATE SERVICES
4000.00,Elysian Parlour,Assets,Current Assets,Covid19 Funding,6219,Addnl Restrictions Grant,22/12/2020,Addnl Restrictions Grant,117683,Assets,FINANCE & CORPORATE SERVICES
4000.00,Estilo (West Bridgford) Limited,Assets,Current Assets,Covid19 Funding,6219,Addnl Restrictions Grant,22/12/2020,Addnl Restrictions Grant,117687,Assets,FINANCE & CORPORATE SERVICES
4000.00,Fairly Trading Limited,Assets,Current Assets,Covid19 Funding,6219,Addnl Restrictions Grant,22/12/2020,Addnl Restrictions Grant,117702,Assets,FINANCE & CORPORATE SERVICES
4000.00,Frances Russell Ta White Rabbit Teahouse,Assets,Current Assets,Covid19 Funding,6219,Addnl Restrictions Grant,22/12/2020,Addnl Restrictions Grant,117705,Assets,FINANCE & CORPORATE SERVICES
4000.00,Good Table & Cheer Ltd,Assets,Current Assets,Covid19 Funding,6219,Addnl Restrictions Grant,22/12/2020,Addnl Restrictions Grant,117707,Assets,FINANCE & CORPORATE SERVICES
4000.00,Great Northern Bars Ltd,Assets,Current Assets,Covid19 Funding,6219,Addnl Restrictions Grant,22/12/2020,Addnl Restrictions Grant,117711,Assets,FINANCE & CORPORATE SERVICES
4000.00,Great Northern Refinery Ltd,Assets,Current Assets,Covid19 Funding,6219,Addnl Restrictions Grant,22/12/2020,Addnl Restrictions Grant,117712,Assets,FINANCE & CORPORATE SERVICES
4000.00,Grumpy Joes Ltd,Assets,Current Assets,Covid19 Funding,6219,Addnl Restrictions Grant,22/12/2020,Addnl Restrictions Grant,117714,Assets,FINANCE & CORPORATE SERVICES
4000.00,Gusto Restaurants Uk Ltd,Assets,Current Assets,Covid19 Funding,6219,Addnl Restrictions Grant,22/12/2020,Addnl Restrictions Grant,117716,Assets,FINANCE & CORPORATE SERVICES
4000.00,Harvey And Coombes Pub Company,Assets,Current Assets,Covid19 Funding,6219,Addnl Restrictions Grant,22/12/2020,Addnl Restrictions Grant,117718,Assets,FINANCE & CORPORATE SERVICES
4000.00,Henry Brewer Gallery Limited,Assets,Current Assets,Covid19 Funding,6219,Addnl Restrictions Grant,22/12/2020,Addnl Restrictions Grant,117720,Assets,FINANCE & CORPORATE SERVICES
4000.00,Hillary And Scott Ltd,Assets,Current Assets,Covid19 Funding,6219,Addnl Restrictions Grant,22/12/2020,Addnl Restrictions Grant,117722,Assets,FINANCE & CORPORATE SERVICES
4000.00,Home Farm Livery,Assets,Current Assets,Covid19 Funding,6219,Addnl Restrictions Grant,22/12/2020,Addnl Restrictions Grant,117726,Assets,FINANCE & CORPORATE SERVICES
4000.00,Inflatable World Leisure Ltd,Assets,Current Assets,Covid19 Funding,6219,Addnl Restrictions Grant,22/12/2020,Addnl Restrictions Grant,117728,Assets,FINANCE & CORPORATE SERVICES
4000.00,Inspirations West Bridgford Ltd,Assets,Current Assets,Covid19 Funding,6219,Addnl Restrictions Grant,22/12/2020,Addnl Restrictions Grant,117729,Assets,FINANCE & CORPORATE SERVICES
4000.00,Joshua Tree Ltd,Assets,Current Assets,Covid19 Funding,6219,Addnl Restrictions Grant,22/12/2020,Addnl Restrictions Grant,117731,Assets,FINANCE & CORPORATE SERVICES
4000.00,Kalex Cafe Limited,Assets,Current Assets,Covid19 Funding,6219,Addnl Restrictions Grant,22/12/2020,Addnl Restrictions Grant,117732,Assets,FINANCE & CORPORATE SERVICES
4000.00,Keyworth Enterprises Ltd,Assets,Current Assets,Covid19 Funding,6219,Addnl Restrictions Grant,22/12/2020,Addnl Restrictions Grant,117735,Assets,FINANCE & CORPORATE SERVICES
4000.00,Ktmrestaurant Ltd,Assets,Current Assets,Covid19 Funding,6219,Addnl Restrictions Grant,22/12/2020,Addnl Restrictions Grant,117739,Assets,FINANCE & CORPORATE SERVICES
4000.00,Lees & Wilson Holdings Ltd,Assets,Current Assets,Covid19 Funding,6219,Addnl Restrictions Grant,22/12/2020,Addnl Restrictions Grant,117741,Assets,FINANCE & CORPORATE SERVICES
4000.00,Lovely Local Ltd,Assets,Current Assets,Covid19 Funding,6219,Addnl Restrictions Grant,22/12/2020,Addnl Restrictions Grant,117744,Assets,FINANCE & CORPORATE SERVICES
4000.00,Md Sports Ltd,Assets,Current Assets,Covid19 Funding,6219,Addnl Restrictions Grant,22/12/2020,Addnl Restrictions Grant,117746,Assets,FINANCE & CORPORATE SERVICES
4000.00,Michael Peterson Ltd,Assets,Current Assets,Covid19 Funding,6219,Addnl Restrictions Grant,22/12/2020,Addnl Restrictions Grant,117748,Assets,FINANCE & CORPORATE SERVICES
4000.00,Moo Haven,Assets,Current Assets,Covid19 Funding,6219,Addnl Restrictions Grant,15/12/2020,Addnl Restrictions Grant,116888,Assets,FINANCE & CORPORATE SERVICES
4000.00,Moo Haven,Assets,Current Assets,Covid19 Funding,6219,Addnl Restrictions Grant,22/12/2020,Addnl Restrictions Grant,117751,Assets,FINANCE & CORPORATE SERVICES
4000.00,Mwa Events Ltd,Assets,Current Assets,Covid19 Funding,6219,Addnl Restrictions Grant,22/12/2020,Addnl Restrictions Grant,117753,Assets,FINANCE & CORPORATE SERVICES
4000.00,Nags Head,Assets,Current Assets,Covid19 Funding,6219,Addnl Restrictions Grant,22/12/2020,Addnl Restrictions Grant,117755,Assets,FINANCE & CORPORATE SERVICES
4000.00,Paklands Holdings Ltd,Assets,Current Assets,Covid19 Funding,6219,Addnl Restrictions Grant,22/12/2020,Addnl Restrictions Grant,117762,Assets,FINANCE & CORPORATE SERVICES
4000.00,Perkins Bar & Bistro,Assets,Current Assets,Covid19 Funding,6219,Addnl Restrictions Grant,22/12/2020,Addnl Restrictions Grant,117765,Assets,FINANCE & CORPORATE SERVICES
4000.00,Pop Shop Collaborative Ltd,Assets,Current Assets,Covid19 Funding,6219,Addnl Restrictions Grant,22/12/2020,Addnl Restrictions Grant,117767,Assets,FINANCE & CORPORATE SERVICES
4000.00,Premier Pets Hotel Limited,Assets,Current Assets,Covid19 Funding,6219,Addnl Restrictions Grant,22/12/2020,Addnl Restrictions Grant,117769,Assets,FINANCE & CORPORATE SERVICES
4000.00,Really Good Pubs Ltd,Assets,Current Assets,Covid19 Funding,6219,Addnl Restrictions Grant,22/12/2020,Addnl Restrictions Grant,117770,Assets,FINANCE & CORPORATE SERVICES
4000.00,Rushcliffe Golf Club,Assets,Current Assets,Covid19 Funding,6219,Addnl Restrictions Grant,22/12/2020,Addnl Restrictions Grant,117773,Assets,FINANCE & CORPORATE SERVICES
4000.00,Saks Hair & Beauty,Assets,Current Assets,Covid19 Funding,6219,Addnl Restrictions Grant,22/12/2020,Addnl Restrictions Grant,117774,Assets,FINANCE & CORPORATE SERVICES
4000.00,Shapers2018 Limited,Assets,Current Assets,Covid19 Funding,6219,Addnl Restrictions Grant,22/12/2020,Addnl Restrictions Grant,117775,Assets,FINANCE & CORPORATE SERVICES
4000.00,Sherwood Flying Club Ltd,Assets,Current Assets,Covid19 Funding,6219,Addnl Restrictions Grant,14/12/2020,Addnl Restrictions Grant,116778,Assets,FINANCE & CORPORATE SERVICES
4000.00,Sherwood Flying Club Ltd,Assets,Current Assets,Covid19 Funding,6219,Addnl Restrictions Grant,22/12/2020,Addnl Restrictions Grant,117778,Assets,FINANCE & CORPORATE SERVICES
4000.00,Silex Pubs Ltd,Assets,Current Assets,Covid19 Funding,6219,Addnl Restrictions Grant,22/12/2020,Addnl Restrictions Grant,117780,Assets,FINANCE & CORPORATE SERVICES
4000.00,Soothe Limited,Assets,Current Assets,Covid19 Funding,6219,Addnl Restrictions Grant,22/12/2020,Addnl Restrictions Grant,117781,Assets,FINANCE & CORPORATE SERVICES
4000.00,Spencers Of Car Colston Ltd T/A The Royal Oak,Assets,Current Assets,Covid19 Funding,6219,Addnl Restrictions Grant,22/12/2020,Addnl Restrictions Grant,117783,Assets,FINANCE & CORPORATE SERVICES
4000.00,The Bay Therapy Centre Ltd,Assets,Current Assets,Covid19 Funding,6219,Addnl Restrictions Grant,22/12/2020,Addnl Restrictions Grant,117784,Assets,FINANCE & CORPORATE SERVICES
4000.00,The Beer Consortium Ltd (Horse & Plough),Assets,Current Assets,Covid19 Funding,6219,Addnl Restrictions Grant,22/12/2020,Addnl Restrictions Grant,117785,Assets,FINANCE & CORPORATE SERVICES
4000.00,The Bridgford Salon  (Hair Scene),Assets,Current Assets,Covid19 Funding,6219,Addnl Restrictions Grant,22/12/2020,Addnl Restrictions Grant,117787,Assets,FINANCE & CORPORATE SERVICES
4000.00,The Curtain Pole Trading As Cp Interiors,Assets,Current Assets,Covid19 Funding,6219,Addnl Restrictions Grant,22/12/2020,Addnl Restrictions Grant,117793,Assets,FINANCE & CORPORATE SERVICES
4000.00,The Fitness Collective Ltd,Assets,Current Assets,Covid19 Funding,6219,Addnl Restrictions Grant,22/12/2020,Addnl Restrictions Grant,117796,Assets,FINANCE & CORPORATE SERVICES
4000.00,The Key Health Club,Assets,Current Assets,Covid19 Funding,6219,Addnl Restrictions Grant,22/12/2020,Addnl Restrictions Grant,117798,Assets,FINANCE & CORPORATE SERVICES
4000.00,The Martin Arms Inn,Assets,Current Assets,Covid19 Funding,6219,Addnl Restrictions Grant,22/12/2020,Addnl Restrictions Grant,117800,Assets,FINANCE & CORPORATE SERVICES
4000.00,The Pub People Company Ltd,Assets,Current Assets,Covid19 Funding,6219,Addnl Restrictions Grant,22/12/2020,Addnl Restrictions Grant,117804,Assets,FINANCE & CORPORATE SERVICES
4000.00,The Pub People Company Ltd,Assets,Current Assets,Covid19 Funding,6219,Addnl Restrictions Grant,22/12/2020,Addnl Restrictions Grant,117806,Assets,FINANCE & CORPORATE SERVICES
4000.00,The Real Salon,Assets,Current Assets,Covid19 Funding,6219,Addnl Restrictions Grant,22/12/2020,Addnl Restrictions Grant,117808,Assets,FINANCE & CORPORATE SERVICES
4000.00,The Unicorns Head,Assets,Current Assets,Covid19 Funding,6219,Addnl Restrictions Grant,22/12/2020,Addnl Restrictions Grant,117809,Assets,FINANCE & CORPORATE SERVICES
4000.00,The Wheatsheaf Bingham,Assets,Current Assets,Covid19 Funding,6219,Addnl Restrictions Grant,22/12/2020,Addnl Restrictions Grant,117815,Assets,FINANCE & CORPORATE SERVICES
4000.00,Three Crowns,Assets,Current Assets,Covid19 Funding,6219,Addnl Restrictions Grant,22/12/2020,Addnl Restrictions Grant,117818,Assets,FINANCE & CORPORATE SERVICES
4000.00,Tipsy Trex Ltd,Assets,Current Assets,Covid19 Funding,6219,Addnl Restrictions Grant,22/12/2020,Addnl Restrictions Grant,117820,Assets,FINANCE & CORPORATE SERVICES
4000.00,Venezia (Catering) Ltd,Assets,Current Assets,Covid19 Funding,6219,Addnl Restrictions Grant,22/12/2020,Addnl Restrictions Grant,117823,Assets,FINANCE & CORPORATE SERVICES
4000.00,Waterside Bar Kitchen,Assets,Current Assets,Covid19 Funding,6219,Addnl Restrictions Grant,22/12/2020,Addnl Restrictions Grant,117825,Assets,FINANCE & CORPORATE SERVICES
4000.00,West Bridgford Machine Co Ltd  Trophymaster,Assets,Current Assets,Covid19 Funding,6219,Addnl Restrictions Grant,22/12/2020,Addnl Restrictions Grant,117829,Assets,FINANCE & CORPORATE SERVICES
4000.00,West Bridgford Masonic Club Ltd,Assets,Current Assets,Covid19 Funding,6219,Addnl Restrictions Grant,22/12/2020,Addnl Restrictions Grant,117831,Assets,FINANCE & CORPORATE SERVICES
4000.00,West Bridgford Sports Club,Assets,Current Assets,Covid19 Funding,6219,Addnl Restrictions Grant,22/12/2020,Addnl Restrictions Grant,117834,Assets,FINANCE & CORPORATE SERVICES
4000.00,Wolds Pub Co Ltd,Assets,Current Assets,Covid19 Funding,6219,Addnl Restrictions Grant,22/12/2020,Addnl Restrictions Grant,117837,Assets,FINANCE & CORPORATE SERVICES
4000.00,Wysall Plough Ltd,Assets,Current Assets,Covid19 Funding,6219,Addnl Restrictions Grant,22/12/2020,Addnl Restrictions Grant,117839,Assets,FINANCE & CORPORATE SERVICES
4000.00,Yb Central Ltd,Assets,Current Assets,Covid19 Funding,6219,Addnl Restrictions Grant,22/12/2020,Addnl Restrictions Grant,117842,Assets,FINANCE & CORPORATE SERVICES
4000.00,Yjr Bridgford Ltd,Assets,Current Assets,Covid19 Funding,6219,Addnl Restrictions Grant,22/12/2020,Addnl Restrictions Grant,117845,Assets,FINANCE & CORPORATE SERVICES
3984.57,Frontline Recruitment Ltd,Neighbourhoods,Waste & Fleet Management,Waste Collection,8403,Agency Staff,30/11/2020,Employee Related Expenditure,115714,Neighbourhoods,FINANCE & CORPORATE SERVICES
3925.91,Nottingham City Council,Neighbourhoods,Waste & Fleet Management,Fleet,8600,Contractors-Transport,20/10/2020,Transport Related Expenditure,114127,Neighbourhoods,FINANCE & CORPORATE SERVICES
3856.55,Frontline Recruitment Ltd,Neighbourhoods,Waste & Fleet Management,Waste Collection,8403,Agency Staff,28/10/2020,Employee Related Expenditure,114137,Neighbourhoods,FINANCE & CORPORATE SERVICES
3722.40,Electoral Reform Services,Finance & Corporate Services,Democratic Services,Electoral Registration,1026,Telephone Response,05/11/2020,Supplies & Services,114067,Finance & Corporate Services,FINANCE & CORPORATE SERVICES
3653.75,Via East Midlands Ltd,Communities,Community Development,West Bridgford Town Centre,1875,Projects & Activities,26/11/2020,Supplies & Services,115164,Communities,TRANSFORMATION
3600.00,P.Waller (Decorators) Ltd,Neighbourhoods,Strategic Housing,Hostel Hound Lodge,1111,Planned Maintenance Recharge,30/11/2020,Supplies & Services,115638,Neighbourhoods,NEIGHBOURHOODS
3582.13,Daisy Corporate Services Trading Limited,Finance & Corporate Services,Ict,It Rechargeable Costs,4722,Maintenance Contracts - S&S,20/11/2020,Supplies & Services,114801,Finance & Corporate Services,TRANSFORMATION
3564.00,Magpie Security Limited,Transformation,Economic Regeneration,High Streets Safely,1881,Legal & Professional Services,19/11/2020,Supplies & Services,114704,Transformation,TRANSFORMATION
3550.00,Mdt Windows,Capital Expenditure,Neighbourhoods,Disabled Facilities Grant,0332,Grants,12/11/2020,Supplies & Services,114238,Capital Expenditure,CAPITAL
3500.00,Cornerstone Barristers,Transformation,Legal,Legal Services,4701,Other Income,20/11/2020,Income,114570,Transformation,FINANCE & CORPORATE SERVICES
3482.44,Service Level Management Ltd,Transformation,Bsu,Central Mail,4871,Postages,24/11/2020,Supplies & Services,112821,Transformation,TRANSFORMATION
3395.00,Henry Riley Llp,Capital Expenditure,Transformation & Innovation,Bingham Leisure Hub,0314,Legal & Professional Services,28/10/2020,Supplies & Services,114057,Capital Expenditure,TRANSFORMATION
3314.40,Ruddington Village Centre Partnership,Transformation,Economic Regeneration,Economic Development,1887,Legal & Professional Services,15/12/2020,Supplies & Services,116161,Transformation,TRANSFORMATION
3300.00,Haymarket Media Group,Communities,Planning & Growth,Development Control,1161,Books & Publications,30/11/2020,Supplies & Services,114822,Communities,COMMUNITIES
3285.00,Paul Abbey,Capital Expenditure,Neighbourhoods,Clc Changing Village Refurb,0402,Contractors-Third Party,27/10/2020,Third Party Payments,114213,Capital Expenditure,CAPITAL
3240.00,Knight Kavanagh And Page Ltd,Neighbourhoods,Leisure Contracts & Car Parks,Leisure Management Contract,1795,Legal & Professional Services,18/12/2020,Supplies & Services,117280,Neighbourhoods,FINANCE & CORPORATE SERVICES
3150.00,Harvey & Coombes Ltd,Transformation,Bsu,Business Support Unit,4805,Postages,26/10/2020,Supplies & Services,113874,Transformation,TRANSFORMATION
3150.00,Apw (Nottm) Ltd,Capital Expenditure,Neighbourhoods,Disabled Facilities Grant,0332,Grants,01/12/2020,Supplies & Services,116143,Capital Expenditure,CAPITAL
3059.87,Toot Hill School,Neighbourhoods,Leisure Contracts & Car Parks,Leisure Management Contract,1795,Electricity,02/10/2020,Premises Related Expenditure,113503,Neighbourhoods,FINANCE & CORPORATE SERVICES
3000.00,Nottinghamshire County Cricket Club Limited,Assets,Current Assets,Covid19 Funding,6219,Local Restrcns Supp Gt-Lckd,16/11/2020,Local Restrcns Supp Gt-Lckd,115003,Assets,FINANCE & CORPORATE SERVICES
3000.00,The Nottinghamshire Golf And Country Club Ltd,Assets,Current Assets,Covid19 Funding,6219,Local Restrcns Supp Gt-Lckd,13/11/2020,Local Restrcns Supp Gt-Lckd,114887,Assets,FINANCE & CORPORATE SERVICES
3000.00,Capita,Communities,Planning & Growth,Development Control,1161,Legal & Professional Services,20/11/2020,Supplies & Services,114620,Communities,COMMUNITIES
3000.00,Shamshad Walker Marketing,Transformation,Economic Regeneration,High Streets Safely,1881,Legal & Professional Services,10/11/2020,Supplies & Services,114613,Transformation,TRANSFORMATION
3000.00,Chaspurs Ltd,Assets,Current Assets,Covid19 Funding,6219,Local Restrcns Supp Gt-Lckd,13/11/2020,Local Restrcns Supp Gt-Lckd,114909,Assets,FINANCE & CORPORATE SERVICES
3000.00,Culture; Learning And Libraries (Midlands),Assets,Current Assets,Covid19 Funding,6219,Local Restrcns Supp Gt-Lckd,30/11/2020,Local Restrcns Supp Gt-Lckd,116180,Assets,FINANCE & CORPORATE SERVICES
3000.00,Griffin Inn Plumtree Limited,Assets,Current Assets,Covid19 Funding,6219,Local Restrcns Supp Gt-Lckd,20/11/2020,Local Restrcns Supp Gt-Lckd,115520,Assets,FINANCE & CORPORATE SERVICES
3000.00,J D Wetherspoon Plc,Assets,Current Assets,Covid19 Funding,6219,Local Restrcns Supp Gt-Lckd,20/11/2020,Local Restrcns Supp Gt-Lckd,115502,Assets,FINANCE & CORPORATE SERVICES
3000.00,J D Wetherspoon Plc,Assets,Current Assets,Covid19 Funding,6219,Local Restrcns Supp Gt-Lckd,20/11/2020,Local Restrcns Supp Gt-Lckd,115503,Assets,FINANCE & CORPORATE SERVICES
3000.00,Lady Bay Inns Ltd,Assets,Current Assets,Covid19 Funding,6219,Local Restrcns Supp Gt-Lckd,13/11/2020,Local Restrcns Supp Gt-Lckd,114880,Assets,FINANCE & CORPORATE SERVICES
3000.00,Lex Leisure Cic,Assets,Current Assets,Covid19 Funding,6219,Addnl Restrictions Grant,30/11/2020,Addnl Restrictions Grant,116213,Assets,FINANCE & CORPORATE SERVICES
3000.00,Lex Leisure Cic,Assets,Current Assets,Covid19 Funding,6219,Local Restrcns Supp Gt-Lckd,30/11/2020,Local Restrcns Supp Gt-Lckd,116210,Assets,FINANCE & CORPORATE SERVICES
3000.00,Lex Leisure Cic,Assets,Current Assets,Covid19 Funding,6219,Local Restrcns Supp Gt-Lckd,30/11/2020,Local Restrcns Supp Gt-Lckd,116211,Assets,FINANCE & CORPORATE SERVICES
3000.00,Lex Leisure Cic,Assets,Current Assets,Covid19 Funding,6219,Local Restrcns Supp Gt-Lckd,30/11/2020,Local Restrcns Supp Gt-Lckd,116212,Assets,FINANCE & CORPORATE SERVICES
3000.00,New World Trading Company (Uk) Limited,Assets,Current Assets,Covid19 Funding,6219,Local Restrcns Supp Gt-Lckd,20/11/2020,Local Restrcns Supp Gt-Lckd,115527,Assets,FINANCE & CORPORATE SERVICES
3000.00,Notts Gymnastics Academy,Assets,Current Assets,Covid19 Funding,6219,Local Restrcns Supp Gt-Lckd,13/11/2020,Local Restrcns Supp Gt-Lckd,114870,Assets,FINANCE & CORPORATE SERVICES
3000.00,Radcliffe On Trent Golf Club,Assets,Current Assets,Covid19 Funding,6219,Local Restrcns Supp Gt-Lckd,20/11/2020,Local Restrcns Supp Gt-Lckd,115475,Assets,FINANCE & CORPORATE SERVICES
3000.00,Roko Health Clubs Ltd,Assets,Current Assets,Covid19 Funding,6219,Local Restrcns Supp Gt-Lckd,30/11/2020,Local Restrcns Supp Gt-Lckd,116183,Assets,FINANCE & CORPORATE SERVICES
3000.00,Ruddington Grange Golf Club Ltd,Assets,Current Assets,Covid19 Funding,6219,Local Restrcns Supp Gt-Lckd,18/11/2020,Local Restrcns Supp Gt-Lckd,115305,Assets,FINANCE & CORPORATE SERVICES
3000.00,Stanton On The Wolds Golf Club Limited,Assets,Current Assets,Covid19 Funding,6219,Local Restrcns Supp Gt-Lckd,20/11/2020,Local Restrcns Supp Gt-Lckd,115534,Assets,FINANCE & CORPORATE SERVICES
3000.00,The Cat & Wickets Pub Company,Assets,Current Assets,Covid19 Funding,6219,Local Restrcns Supp Gt-Lckd,20/11/2020,Local Restrcns Supp Gt-Lckd,115542,Assets,FINANCE & CORPORATE SERVICES
3000.00,The Moleface Pub Company Llp,Assets,Current Assets,Covid19 Funding,6219,Local Restrcns Supp Gt-Lckd,24/11/2020,Local Restrcns Supp Gt-Lckd,115805,Assets,FINANCE & CORPORATE SERVICES
3000.00,The Plough Inn,Assets,Current Assets,Covid19 Funding,6219,Local Restrcns Supp Gt-Lckd,20/11/2020,Local Restrcns Supp Gt-Lckd,115535,Assets,FINANCE & CORPORATE SERVICES
3000.00,The Pub People Company Ltd,Assets,Current Assets,Covid19 Funding,6219,Local Restrcns Supp Gt-Lckd,26/11/2020,Local Restrcns Supp Gt-Lckd,116015,Assets,FINANCE & CORPORATE SERVICES
3000.00,The Radcliffe Arms Ltd,Assets,Current Assets,Covid19 Funding,6219,Local Restrcns Supp Gt-Lckd,26/11/2020,Local Restrcns Supp Gt-Lckd,115943,Assets,FINANCE & CORPORATE SERVICES
3000.00,The Ruddy Good Pub Company Ltd,Assets,Current Assets,Covid19 Funding,6219,Local Restrcns Supp Gt-Lckd,20/11/2020,Local Restrcns Supp Gt-Lckd,115476,Assets,FINANCE & CORPORATE SERVICES
3000.00,Thorntons Holt Camping Park,Assets,Current Assets,Covid19 Funding,6219,Local Restrcns Supp Gt-Lckd,19/11/2020,Local Restrcns Supp Gt-Lckd,115425,Assets,FINANCE & CORPORATE SERVICES
3000.00,West Bridgford Lawn Tennis Club,Assets,Current Assets,Covid19 Funding,6219,Local Restrcns Supp Gt-Lckd,18/11/2020,Local Restrcns Supp Gt-Lckd,115243,Assets,FINANCE & CORPORATE SERVICES
3000.00,Central Helicopters Limited,Assets,Current Assets,Covid19 Funding,6219,Addnl Restrictions Grant,03/12/2020,Addnl Restrictions Grant,116409,Assets,FINANCE & CORPORATE SERVICES
3000.00,Tynemill Ltd,Assets,Current Assets,Covid19 Funding,6219,Local Restrcns Supp Gt-Lckd,03/12/2020,Local Restrcns Supp Gt-Lckd,116402,Assets,FINANCE & CORPORATE SERVICES
3000.00,Central Helicopters Limited,Assets,Current Assets,Covid19 Funding,6219,Addnl Restrictions Grant,22/12/2020,Addnl Restrictions Grant,117605,Assets,FINANCE & CORPORATE SERVICES
3000.00,Cote Restaurants Group Ltd,Assets,Current Assets,Covid19 Funding,6219,Local Restrcns Supp Gt-Lckd,18/12/2020,Local Restrcns Supp Gt-Lckd,117324,Assets,FINANCE & CORPORATE SERVICES
2984.50,Lodge Tyre Co.Ltd,Neighbourhoods,Waste & Fleet Management,Waste Collection,8403,Tyres,03/12/2020,Transport Related Expenditure,116524,Neighbourhoods,FINANCE & CORPORATE SERVICES
2885.47,Toot Hill School,Neighbourhoods,Leisure Contracts & Car Parks,Leisure Management Contract,1795,Electricity,02/10/2020,Premises Related Expenditure,113499,Neighbourhoods,FINANCE & CORPORATE SERVICES
2870.00,Nra Roofing & Flooring Services Ltd,Capital Expenditure,Transformation & Innovation,Bridgford Hall Refurbishment,0382,Contractors-Third Party,18/12/2020,Third Party Payments,116717,Capital Expenditure,CAPITAL
2824.44,Lift & Engineering Services Ltd,Transformation,Property Services,The Point,1886,Service Maintenance Contracts,20/10/2020,Premises Related Expenditure,113813,Transformation,TRANSFORMATION
2762.00,Geldards Llp,Capital Expenditure,Transformation & Innovation,The Crematorium,0684,Legal & Professional Services,26/11/2020,Supplies & Services,114481,Capital Expenditure,CAPITAL
2750.00,Shamshad Walker Marketing,Transformation,Economic Regeneration,High Streets Safely,1881,Legal & Professional Services,02/10/2020,Supplies & Services,113675,Transformation,TRANSFORMATION
2710.80,Gedling Borough Council,Finance & Corporate Services,Democratic Services,Borough Council Elections,1021,Contractors-Supplies & Servs,19/11/2020,Supplies & Services,114580,Finance & Corporate Services,FINANCE & CORPORATE SERVICES
2645.90,Nottingham City Council,Transformation,Human Resources,Human Resources,4709,Agency Staff,03/11/2020,Employee Related Expenditure,114459,Transformation,TRANSFORMATION
2645.00,Imtech G&H Ltd,Neighbourhoods,Strategic Housing,Hostel Hound Lodge,1111,Planned Maintenance Recharge,10/11/2020,Supplies & Services,114317,Neighbourhoods,NEIGHBOURHOODS
2538.21,Lynch Healthcare Ltd,Capital Expenditure,Neighbourhoods,Disabled Facilities Grant,0332,Grants,03/11/2020,Supplies & Services,114511,Capital Expenditure,CAPITAL
2499.75,North West Leicestershire District Council,Transformation,Economic Regeneration,Economic Development,1887,Feasibility Study,28/10/2020,Supplies & Services,114337,Transformation,TRANSFORMATION
2400.00,Shamshad Walker Marketing,Transformation,Economic Regeneration,High Streets Safely,1881,Legal & Professional Services,13/10/2020,Supplies & Services,113658,Transformation,TRANSFORMATION
2352.00,Freedom Foundation,Communities,Community Development,Health Development,1058,Grants,12/11/2020,Supplies & Services,114578,Communities,COMMUNITIES
2333.70,Zip Heaters (Uk) Ltd,Transformation,Property Services,Arena Civic Centre,4718,Service Maintenance Contracts,20/10/2020,Premises Related Expenditure,113767,Transformation,TRANSFORMATION
2318.19,Toot Hill School,Neighbourhoods,Leisure Contracts & Car Parks,Leisure Management Contract,1795,Gas,05/11/2020,Premises Related Expenditure,114326,Neighbourhoods,FINANCE & CORPORATE SERVICES
2276.57,Reach Publishing Services Limited,Communities,Planning & Growth,Development Control,1161,Advertising,01/12/2020,Supplies & Services,116165,Communities,COMMUNITIES
2270.00,Commercial Surface Solutions Ltd,Transformation,Property Services,Arena Civic Centre,4718,Contractors-Supplies & Servs,16/12/2020,Supplies & Services,116806,Transformation,TRANSFORMATION
2250.00,Ludlow Hill Mot Centre,Neighbourhoods,Environmental Health,Hackney Carriage/Private Hire,1031,Contractors-Transport,18/11/2020,Transport Related Expenditure,115145,Neighbourhoods,NEIGHBOURHOODS
2250.00,Via East Midlands Ltd,Capital Expenditure,Transformation & Innovation,Manvers Bp Cp Surface/Drain,0206,Contractors-Third Party,03/12/2020,Third Party Payments,116419,Capital Expenditure,#N/A
2201.12,Groundsman Tools And Supplies Llp,Neighbourhoods,Waste & Fleet Management,Eastcroft Depot,4002,Other Equipment/Materials,02/12/2020,Supplies & Services,116308,Neighbourhoods,NEIGHBOURHOODS
2190.00,Jne Security Ltd,Neighbourhoods,Environmental Health,Community Safety,1598,Projects & Activities,15/10/2020,Supplies & Services,113859,Neighbourhoods,NEIGHBOURHOODS
2187.10,Blachere Illumination Uk Ltd,Communities,Community Development,West Bridgford Town Centre,1875,Projects & Activities,22/12/2020,Supplies & Services,116612,Communities,TRANSFORMATION
2142.50,The Christmas Decorators Ltd,Communities,Community Development,West Bridgford Town Centre,1875,Publicity & Promotion,03/12/2020,Supplies & Services,115939,Communities,TRANSFORMATION
2100.00,Nottinghamshire County Cricket Club Limited,Assets,Current Assets,Covid19 Funding,6219,Local Restrcns Supp Gt-Open,16/11/2020,Local Restrcns Supp Gt-Open,115003,Assets,FINANCE & CORPORATE SERVICES
2100.00,Chaspurs Ltd,Assets,Current Assets,Covid19 Funding,6219,Local Restrcns Supp Gt-Open,13/11/2020,Local Restrcns Supp Gt-Open,114909,Assets,FINANCE & CORPORATE SERVICES
2100.00,Griffin Inn Plumtree Limited,Assets,Current Assets,Covid19 Funding,6219,Local Restrcns Supp Gt-Open,20/11/2020,Local Restrcns Supp Gt-Open,115520,Assets,FINANCE & CORPORATE SERVICES
2100.00,J D Wetherspoon Plc,Assets,Current Assets,Covid19 Funding,6219,Local Restrcns Supp Gt-Open,20/11/2020,Local Restrcns Supp Gt-Open,115502,Assets,FINANCE & CORPORATE SERVICES
2100.00,J D Wetherspoon Plc,Assets,Current Assets,Covid19 Funding,6219,Local Restrcns Supp Gt-Open,20/11/2020,Local Restrcns Supp Gt-Open,115503,Assets,FINANCE & CORPORATE SERVICES
2100.00,Lady Bay Inns Ltd,Assets,Current Assets,Covid19 Funding,6219,Local Restrcns Supp Gt-Open,13/11/2020,Local Restrcns Supp Gt-Open,114880,Assets,FINANCE & CORPORATE SERVICES
2100.00,New World Trading Company (Uk) Limited,Assets,Current Assets,Covid19 Funding,6219,Local Restrcns Supp Gt-Open,20/11/2020,Local Restrcns Supp Gt-Open,115527,Assets,FINANCE & CORPORATE SERVICES
2100.00,The Cat & Wickets Pub Company,Assets,Current Assets,Covid19 Funding,6219,Local Restrcns Supp Gt-Open,20/11/2020,Local Restrcns Supp Gt-Open,115542,Assets,FINANCE & CORPORATE SERVICES
2100.00,The Moleface Pub Company Llp,Assets,Current Assets,Covid19 Funding,6219,Local Restrcns Supp Gt-Open,24/11/2020,Local Restrcns Supp Gt-Open,115805,Assets,FINANCE & CORPORATE SERVICES
2100.00,The Plough Inn,Assets,Current Assets,Covid19 Funding,6219,Local Restrcns Supp Gt-Open,20/11/2020,Local Restrcns Supp Gt-Open,115535,Assets,FINANCE & CORPORATE SERVICES
2100.00,The Pub People Company Ltd,Assets,Current Assets,Covid19 Funding,6219,Local Restrcns Supp Gt-Open,26/11/2020,Local Restrcns Supp Gt-Open,116015,Assets,FINANCE & CORPORATE SERVICES
2100.00,The Radcliffe Arms Ltd,Assets,Current Assets,Covid19 Funding,6219,Local Restrcns Supp Gt-Open,26/11/2020,Local Restrcns Supp Gt-Open,115943,Assets,FINANCE & CORPORATE SERVICES
2100.00,The Ruddy Good Pub Company Ltd,Assets,Current Assets,Covid19 Funding,6219,Local Restrcns Supp Gt-Open,20/11/2020,Local Restrcns Supp Gt-Open,115476,Assets,FINANCE & CORPORATE SERVICES
2100.00,Thorntons Holt Camping Park,Assets,Current Assets,Covid19 Funding,6219,Local Restrcns Supp Gt-Open,19/11/2020,Local Restrcns Supp Gt-Open,115425,Assets,FINANCE & CORPORATE SERVICES
2100.00,Tynemill Ltd,Assets,Current Assets,Covid19 Funding,6219,Local Restrcns Supp Gt-Open,03/12/2020,Local Restrcns Supp Gt-Open,116402,Assets,FINANCE & CORPORATE SERVICES
2070.00,P.Waller (Decorators) Ltd,Neighbourhoods,Strategic Housing,Hostel Hound Lodge,1111,Planned Maintenance Recharge,30/11/2020,Supplies & Services,115637,Neighbourhoods,NEIGHBOURHOODS
2062.00,Mk Door Systems Ltd T/A Style Midlands,Transformation,Property Services,Arena Civic Centre,4718,Service Maintenance Contracts,03/11/2020,Premises Related Expenditure,114062,Transformation,TRANSFORMATION
2061.00,E S Solutions Ltd,Communities,Community Development,Parks & Playing Fields-Gen,8910,Notice Boards In Wb (Se),20/11/2020,Supplies & Services,114814,Communities,FINANCE & CORPORATE SERVICES
2058.70,Trent Valley Plumbing & Build,Capital Expenditure,Neighbourhoods,Disabled Facilities Grant,0332,Grants,01/12/2020,Supplies & Services,116144,Capital Expenditure,CAPITAL
2053.41,Tuskerdirect Limited,Assets,Non Current Assets,Tusker Car Scheme,6012,Tusker Car Scheme,12/11/2020,Transfers Expenditure,114648,Assets,FINANCE & CORPORATE SERVICES
2036.28,Via East Midlands Ltd,Capital Expenditure,Communities,West Park Fencing & Cp,0676,Contractors-Third Party,23/10/2020,Third Party Payments,113888,Capital Expenditure,COMMUNITIES
2013.49,Toot Hill School,Neighbourhoods,Leisure Contracts & Car Parks,Leisure Management Contract,1795,Gas,21/10/2020,Premises Related Expenditure,113701,Neighbourhoods,FINANCE & CORPORATE SERVICES
2011.95,Toot Hill School,Neighbourhoods,Leisure Contracts & Car Parks,Leisure Management Contract,1795,Gas,02/10/2020,Premises Related Expenditure,113498,Neighbourhoods,FINANCE & CORPORATE SERVICES
2005.00,A R Signs Ltd,Transformation,Economic Regeneration,High Streets Safely,1881,Legal & Professional Services,10/11/2020,Supplies & Services,114304,Transformation,TRANSFORMATION
2000.00,Nottingham Raceway Karting (2010) Ltd,Assets,Current Assets,Covid19 Funding,6219,Local Restrcns Supp Gt-Lckd,30/11/2020,Local Restrcns Supp Gt-Lckd,116206,Assets,FINANCE & CORPORATE SERVICES
2000.00,Nottinghamshire Hospice,Assets,Current Assets,Covid19 Funding,6219,Local Restrcns Supp Gt-Lckd,13/11/2020,Local Restrcns Supp Gt-Lckd,114914,Assets,FINANCE & CORPORATE SERVICES
2000.00,Idox Software Limited,Finance & Corporate Services,Ict,It Rechargeable Costs,4722,Maintenance Contracts - S&S,27/10/2020,Supplies & Services,114006,Finance & Corporate Services,TRANSFORMATION
2000.00,Nottinghamshire Sports Club Limited,Assets,Current Assets,Covid19 Funding,6219,Local Restrcns Supp Gt-Lckd,18/11/2020,Local Restrcns Supp Gt-Lckd,115254,Assets,FINANCE & CORPORATE SERVICES
2000.00,The Washroom Nottingham Ltd,Assets,Current Assets,Covid19 Funding,6219,Local Restrcns Supp Gt-Lckd,26/11/2020,Local Restrcns Supp Gt-Lckd,115976,Assets,FINANCE & CORPORATE SERVICES
2000.00,Focusonbanking,Finance & Corporate Services,Financial Services,Financial Services,4705,Legal & Professional Services,09/12/2020,Supplies & Services,115707,Finance & Corporate Services,FINANCE & CORPORATE SERVICES
2000.00,24a Central Avenue Lts,Assets,Current Assets,Covid19 Funding,6219,Local Restrcns Supp Gt-Lckd,20/11/2020,Local Restrcns Supp Gt-Lckd,115492,Assets,FINANCE & CORPORATE SERVICES
2000.00,888 Vapour Ltd,Assets,Current Assets,Covid19 Funding,6219,Local Restrcns Supp Gt-Lckd,26/11/2020,Local Restrcns Supp Gt-Lckd,116005,Assets,FINANCE & CORPORATE SERVICES
2000.00,Aaaf Properties Ltd (Blotts Country Club),Assets,Current Assets,Covid19 Funding,6219,Local Restrcns Supp Gt-Lckd,20/11/2020,Local Restrcns Supp Gt-Lckd,115499,Assets,FINANCE & CORPORATE SERVICES
2000.00,A&A Pub Company,Assets,Current Assets,Covid19 Funding,6219,Local Restrcns Supp Gt-Lckd,18/11/2020,Local Restrcns Supp Gt-Lckd,115303,Assets,FINANCE & CORPORATE SERVICES
2000.00,A&S Greenway T/A Number 8 Delicatessen,Assets,Current Assets,Covid19 Funding,6219,Local Restrcns Supp Gt-Lckd,26/11/2020,Local Restrcns Supp Gt-Lckd,115978,Assets,FINANCE & CORPORATE SERVICES
2000.00,Ashmores Restaurant,Assets,Current Assets,Covid19 Funding,6219,Local Restrcns Supp Gt-Lckd,20/11/2020,Local Restrcns Supp Gt-Lckd,115522,Assets,FINANCE & CORPORATE SERVICES
2000.00,Aspire 4 Fitness Ltd,Assets,Current Assets,Covid19 Funding,6219,Local Restrcns Supp Gt-Lckd,24/11/2020,Local Restrcns Supp Gt-Lckd,115743,Assets,FINANCE & CORPORATE SERVICES
2000.00,Baresca Tapas Limited,Assets,Current Assets,Covid19 Funding,6219,Local Restrcns Supp Gt-Lckd,20/11/2020,Local Restrcns Supp Gt-Lckd,115483,Assets,FINANCE & CORPORATE SERVICES
2000.00,Beauty Temple (Nottm) Limited,Assets,Current Assets,Covid19 Funding,6219,Local Restrcns Supp Gt-Lckd,18/11/2020,Local Restrcns Supp Gt-Lckd,115236,Assets,FINANCE & CORPORATE SERVICES
2000.00,British Parachute Schools Ltd,Assets,Current Assets,Covid19 Funding,6219,Local Restrcns Supp Gt-Lckd,18/11/2020,Local Restrcns Supp Gt-Lckd,115292,Assets,FINANCE & CORPORATE SERVICES
2000.00,Charde & Co. Ltd,Assets,Current Assets,Covid19 Funding,6219,Local Restrcns Supp Gt-Lckd,30/11/2020,Local Restrcns Supp Gt-Lckd,116190,Assets,FINANCE & CORPORATE SERVICES
2000.00,Chubby Pub Company Ltd,Assets,Current Assets,Covid19 Funding,6219,Local Restrcns Supp Gt-Lckd,19/11/2020,Local Restrcns Supp Gt-Lckd,115252,Assets,FINANCE & CORPORATE SERVICES
2000.00,Copper Wb,Assets,Current Assets,Covid19 Funding,6219,Local Restrcns Supp Gt-Lckd,13/11/2020,Local Restrcns Supp Gt-Lckd,114896,Assets,FINANCE & CORPORATE SERVICES
2000.00,Cotgrave Welfare Scheme & Institute,Assets,Current Assets,Covid19 Funding,6219,Local Restrcns Supp Gt-Lckd,19/11/2020,Local Restrcns Supp Gt-Lckd,115423,Assets,FINANCE & CORPORATE SERVICES
2000.00,Country Club Caterers/Earl Of Chesterfield Pu,Assets,Current Assets,Covid19 Funding,6219,Local Restrcns Supp Gt-Lckd,16/11/2020,Local Restrcns Supp Gt-Lckd,115042,Assets,FINANCE & CORPORATE SERVICES
2000.00,Crystal Lillies Restaurant,Assets,Current Assets,Covid19 Funding,6219,Local Restrcns Supp Gt-Lckd,26/11/2020,Local Restrcns Supp Gt-Lckd,115968,Assets,FINANCE & CORPORATE SERVICES
2000.00,Culture; Learning And Libraries (Midlands),Assets,Current Assets,Covid19 Funding,6219,Local Restrcns Supp Gt-Lckd,30/11/2020,Local Restrcns Supp Gt-Lckd,116177,Assets,FINANCE & CORPORATE SERVICES
2000.00,Culture; Learning And Libraries (Midlands),Assets,Current Assets,Covid19 Funding,6219,Local Restrcns Supp Gt-Lckd,30/11/2020,Local Restrcns Supp Gt-Lckd,116179,Assets,FINANCE & CORPORATE SERVICES
2000.00,Cuzina Limited,Assets,Current Assets,Covid19 Funding,6219,Local Restrcns Supp Gt-Lckd,13/11/2020,Local Restrcns Supp Gt-Lckd,114886,Assets,FINANCE & CORPORATE SERVICES
2000.00,Delhi Nights Limited,Assets,Current Assets,Covid19 Funding,6219,Local Restrcns Supp Gt-Lckd,24/11/2020,Local Restrcns Supp Gt-Lckd,115806,Assets,FINANCE & CORPORATE SERVICES
2000.00,Distinctive Inns Ltd,Assets,Current Assets,Covid19 Funding,6219,Local Restrcns Supp Gt-Lckd,20/11/2020,Local Restrcns Supp Gt-Lckd,115498,Assets,FINANCE & CORPORATE SERVICES
2000.00,Dovecote Farm Equestrian Centre,Assets,Current Assets,Covid19 Funding,6219,Local Restrcns Supp Gt-Lckd,18/11/2020,Local Restrcns Supp Gt-Lckd,115319,Assets,FINANCE & CORPORATE SERVICES
2000.00,Elysian Parlour,Assets,Current Assets,Covid19 Funding,6219,Local Restrcns Supp Gt-Lckd,16/11/2020,Local Restrcns Supp Gt-Lckd,115001,Assets,FINANCE & CORPORATE SERVICES
2000.00,Estilo (West Bridgford) Limited,Assets,Current Assets,Covid19 Funding,6219,Local Restrcns Supp Gt-Lckd,16/11/2020,Local Restrcns Supp Gt-Lckd,115000,Assets,FINANCE & CORPORATE SERVICES
2000.00,Fairly Trading Limited,Assets,Current Assets,Covid19 Funding,6219,Local Restrcns Supp Gt-Lckd,16/11/2020,Local Restrcns Supp Gt-Lckd,114996,Assets,FINANCE & CORPORATE SERVICES
2000.00,Frances Russell Ta White Rabbit Teahouse,Assets,Current Assets,Covid19 Funding,6219,Local Restrcns Supp Gt-Lckd,20/11/2020,Local Restrcns Supp Gt-Lckd,115540,Assets,FINANCE & CORPORATE SERVICES
2000.00,Good Table & Cheer Ltd,Assets,Current Assets,Covid19 Funding,6219,Local Restrcns Supp Gt-Lckd,20/11/2020,Local Restrcns Supp Gt-Lckd,115486,Assets,FINANCE & CORPORATE SERVICES
2000.00,Great Northern Bars Ltd,Assets,Current Assets,Covid19 Funding,6219,Local Restrcns Supp Gt-Lckd,16/11/2020,Local Restrcns Supp Gt-Lckd,115033,Assets,FINANCE & CORPORATE SERVICES
2000.00,Great Northern Refinery Ltd,Assets,Current Assets,Covid19 Funding,6219,Local Restrcns Supp Gt-Lckd,16/11/2020,Local Restrcns Supp Gt-Lckd,115010,Assets,FINANCE & CORPORATE SERVICES
2000.00,Gusto Restaurants Uk Ltd,Assets,Current Assets,Covid19 Funding,6219,Local Restrcns Supp Gt-Lckd,30/11/2020,Local Restrcns Supp Gt-Lckd,116184,Assets,FINANCE & CORPORATE SERVICES
2000.00,Harvey And Coombes Pub Company,Assets,Current Assets,Covid19 Funding,6219,Local Restrcns Supp Gt-Lckd,20/11/2020,Local Restrcns Supp Gt-Lckd,115541,Assets,FINANCE & CORPORATE SERVICES
2000.00,Henry Brewer Gallery Limited,Assets,Current Assets,Covid19 Funding,6219,Local Restrcns Supp Gt-Lckd,16/11/2020,Local Restrcns Supp Gt-Lckd,115029,Assets,FINANCE & CORPORATE SERVICES
2000.00,Hillary And Scott Ltd,Assets,Current Assets,Covid19 Funding,6219,Local Restrcns Supp Gt-Lckd,24/11/2020,Local Restrcns Supp Gt-Lckd,115790,Assets,FINANCE & CORPORATE SERVICES
2000.00,Home Farm Livery,Assets,Current Assets,Covid19 Funding,6219,Local Restrcns Supp Gt-Lckd,18/11/2020,Local Restrcns Supp Gt-Lckd,115249,Assets,FINANCE & CORPORATE SERVICES
2000.00,Inspirations West Bridgford Ltd,Assets,Current Assets,Covid19 Funding,6219,Local Restrcns Supp Gt-Lckd,20/11/2020,Local Restrcns Supp Gt-Lckd,115525,Assets,FINANCE & CORPORATE SERVICES
2000.00,Kalex Cafe Limited,Assets,Current Assets,Covid19 Funding,6219,Local Restrcns Supp Gt-Lckd,26/11/2020,Local Restrcns Supp Gt-Lckd,116025,Assets,FINANCE & CORPORATE SERVICES
2000.00,Keyworth Enterprises Ltd,Assets,Current Assets,Covid19 Funding,6219,Local Restrcns Supp Gt-Lckd,18/11/2020,Local Restrcns Supp Gt-Lckd,115279,Assets,FINANCE & CORPORATE SERVICES
2000.00,Lees & Wilson Holdings Ltd,Assets,Current Assets,Covid19 Funding,6219,Local Restrcns Supp Gt-Clsd,30/11/2020,Local Restrcns Supp Gt-Clsd,116209,Assets,FINANCE & CORPORATE SERVICES
2000.00,Lovely Local Ltd,Assets,Current Assets,Covid19 Funding,6219,Local Restrcns Supp Gt-Lckd,20/11/2020,Local Restrcns Supp Gt-Lckd,115472,Assets,FINANCE & CORPORATE SERVICES
2000.00,Md Sports Ltd,Assets,Current Assets,Covid19 Funding,6219,Local Restrcns Supp Gt-Lckd,20/11/2020,Local Restrcns Supp Gt-Lckd,115515,Assets,FINANCE & CORPORATE SERVICES
2000.00,Michael Peterson Ltd,Assets,Current Assets,Covid19 Funding,6219,Local Restrcns Supp Gt-Lckd,18/11/2020,Local Restrcns Supp Gt-Lckd,115294,Assets,FINANCE & CORPORATE SERVICES
2000.00,Nags Head,Assets,Current Assets,Covid19 Funding,6219,Local Restrcns Supp Gt-Lckd,26/11/2020,Local Restrcns Supp Gt-Lckd,116012,Assets,FINANCE & CORPORATE SERVICES
2000.00,Perkins Bar & Bistro,Assets,Current Assets,Covid19 Funding,6219,Local Restrcns Supp Gt-Lckd,20/11/2020,Local Restrcns Supp Gt-Lckd,115487,Assets,FINANCE & CORPORATE SERVICES
2000.00,Radcliffe On Trent Parish Council,Assets,Current Assets,Covid19 Funding,6219,Local Restrcns Supp Gt-Lckd,26/11/2020,Local Restrcns Supp Gt-Lckd,116022,Assets,FINANCE & CORPORATE SERVICES
2000.00,Really Good Pubs Ltd,Assets,Current Assets,Covid19 Funding,6219,Local Restrcns Supp Gt-Lckd,13/11/2020,Local Restrcns Supp Gt-Lckd,114893,Assets,FINANCE & CORPORATE SERVICES
2000.00,Rushcliffe Golf Club,Assets,Current Assets,Covid19 Funding,6219,Local Restrcns Supp Gt-Lckd,20/11/2020,Local Restrcns Supp Gt-Lckd,115530,Assets,FINANCE & CORPORATE SERVICES
2000.00,Saks Hair & Beauty,Assets,Current Assets,Covid19 Funding,6219,Local Restrcns Supp Gt-Lckd,18/11/2020,Local Restrcns Supp Gt-Lckd,115253,Assets,FINANCE & CORPORATE SERVICES
2000.00,Shapers2018 Limited,Assets,Current Assets,Covid19 Funding,6219,Local Restrcns Supp Gt-Lckd,20/11/2020,Local Restrcns Supp Gt-Lckd,115529,Assets,FINANCE & CORPORATE SERVICES
2000.00,Silex Pubs Ltd,Assets,Current Assets,Covid19 Funding,6219,Local Restrcns Supp Gt-Lckd,13/11/2020,Local Restrcns Supp Gt-Lckd,114894,Assets,FINANCE & CORPORATE SERVICES
2000.00,Soothe Limited,Assets,Current Assets,Covid19 Funding,6219,Local Restrcns Supp Gt-Lckd,24/11/2020,Local Restrcns Supp Gt-Lckd,115799,Assets,FINANCE & CORPORATE SERVICES
2000.00,Spencers Of Car Colston Ltd T/A The Royal Oak,Assets,Current Assets,Covid19 Funding,6219,Local Restrcns Supp Gt-Lckd,16/11/2020,Local Restrcns Supp Gt-Lckd,115013,Assets,FINANCE & CORPORATE SERVICES
2000.00,The Beer Consortium Ltd (Horse & Plough),Assets,Current Assets,Covid19 Funding,6219,Local Restrcns Supp Gt-Lckd,18/11/2020,Local Restrcns Supp Gt-Lckd,115306,Assets,FINANCE & CORPORATE SERVICES
2000.00,The Bridgford Salon  (Hair Scene),Assets,Current Assets,Covid19 Funding,6219,Local Restrcns Supp Gt-Lckd,20/11/2020,Local Restrcns Supp Gt-Lckd,115495,Assets,FINANCE & CORPORATE SERVICES
2000.00,The Chequers Inn,Assets,Current Assets,Covid19 Funding,6219,Local Restrcns Supp Gt-Lckd,20/11/2020,Local Restrcns Supp Gt-Lckd,115536,Assets,FINANCE & CORPORATE SERVICES
2000.00,The Curtain Pole Trading As Cp Interiors,Assets,Current Assets,Covid19 Funding,6219,Local Restrcns Supp Gt-Lckd,26/11/2020,Local Restrcns Supp Gt-Lckd,115964,Assets,FINANCE & CORPORATE SERVICES
2000.00,The Fitness Collective Ltd,Assets,Current Assets,Covid19 Funding,6219,Local Restrcns Supp Gt-Lckd,16/11/2020,Local Restrcns Supp Gt-Lckd,114997,Assets,FINANCE & CORPORATE SERVICES
2000.00,The Key Health Club,Assets,Current Assets,Covid19 Funding,6219,Local Restrcns Supp Gt-Lckd,13/11/2020,Local Restrcns Supp Gt-Lckd,114904,Assets,FINANCE & CORPORATE SERVICES
2000.00,The Martin Arms Inn,Assets,Current Assets,Covid19 Funding,6219,Local Restrcns Supp Gt-Lckd,16/11/2020,Local Restrcns Supp Gt-Lckd,114990,Assets,FINANCE & CORPORATE SERVICES
2000.00,The Pub People Company Ltd,Assets,Current Assets,Covid19 Funding,6219,Local Restrcns Supp Gt-Lckd,26/11/2020,Local Restrcns Supp Gt-Lckd,116006,Assets,FINANCE & CORPORATE SERVICES
2000.00,The Pub People Company Ltd,Assets,Current Assets,Covid19 Funding,6219,Local Restrcns Supp Gt-Lckd,26/11/2020,Local Restrcns Supp Gt-Lckd,116016,Assets,FINANCE & CORPORATE SERVICES
2000.00,The Real Salon,Assets,Current Assets,Covid19 Funding,6219,Local Restrcns Supp Gt-Lckd,20/11/2020,Local Restrcns Supp Gt-Lckd,115466,Assets,FINANCE & CORPORATE SERVICES
2000.00,The Unicorns Head,Assets,Current Assets,Covid19 Funding,6219,Local Restrcns Supp Gt-Lckd,13/11/2020,Local Restrcns Supp Gt-Lckd,114869,Assets,FINANCE & CORPORATE SERVICES
2000.00,The Wheatsheaf Bingham,Assets,Current Assets,Covid19 Funding,6219,Local Restrcns Supp Gt-Lckd,24/11/2020,Local Restrcns Supp Gt-Lckd,115733,Assets,FINANCE & CORPORATE SERVICES
2000.00,Three Crowns,Assets,Current Assets,Covid19 Funding,6219,Local Restrcns Supp Gt-Lckd,13/11/2020,Local Restrcns Supp Gt-Lckd,114879,Assets,FINANCE & CORPORATE SERVICES
2000.00,Tipsy Trex Ltd,Assets,Current Assets,Covid19 Funding,6219,Local Restrcns Supp Gt-Lckd,26/11/2020,Local Restrcns Supp Gt-Lckd,115969,Assets,FINANCE & CORPORATE SERVICES
2000.00,Venezia (Catering) Ltd,Assets,Current Assets,Covid19 Funding,6219,Local Restrcns Supp Gt-Lckd,18/11/2020,Local Restrcns Supp Gt-Lckd,115284,Assets,FINANCE & CORPORATE SERVICES
2000.00,Waterside Bar Kitchen,Assets,Current Assets,Covid19 Funding,6219,Local Restrcns Supp Gt-Lckd,16/11/2020,Local Restrcns Supp Gt-Lckd,114989,Assets,FINANCE & CORPORATE SERVICES
2000.00,West Bridgford Machine Co Ltd  Trophymaster,Assets,Current Assets,Covid19 Funding,6219,Local Restrcns Supp Gt-Lckd,13/11/2020,Local Restrcns Supp Gt-Lckd,114899,Assets,FINANCE & CORPORATE SERVICES
2000.00,West Bridgford Masonic Club Ltd,Assets,Current Assets,Covid19 Funding,6219,Local Restrcns Supp Gt-Lckd,20/11/2020,Local Restrcns Supp Gt-Lckd,115526,Assets,FINANCE & CORPORATE SERVICES
2000.00,West Bridgford Sports Club,Assets,Current Assets,Covid19 Funding,6219,Local Restrcns Supp Gt-Lckd,20/11/2020,Local Restrcns Supp Gt-Lckd,115513,Assets,FINANCE & CORPORATE SERVICES
2000.00,Wysall Plough Ltd,Assets,Current Assets,Covid19 Funding,6219,Local Restrcns Supp Gt-Lckd,13/11/2020,Local Restrcns Supp Gt-Lckd,114903,Assets,FINANCE & CORPORATE SERVICES
2000.00,Yb Central Ltd,Assets,Current Assets,Covid19 Funding,6219,Local Restrcns Supp Gt-Lckd,18/11/2020,Local Restrcns Supp Gt-Lckd,115282,Assets,FINANCE & CORPORATE SERVICES
2000.00,Yjr Bridgford Ltd,Assets,Current Assets,Covid19 Funding,6219,Local Restrcns Supp Gt-Lckd,13/11/2020,Local Restrcns Supp Gt-Lckd,114902,Assets,FINANCE & CORPORATE SERVICES
2000.00,Zinc Bar Ltd,Assets,Current Assets,Covid19 Funding,6219,Local Restrcns Supp Gt-Lckd,26/11/2020,Local Restrcns Supp Gt-Lckd,115963,Assets,FINANCE & CORPORATE SERVICES
2000.00,Bertieblue Pub Co Ltd,Assets,Current Assets,Covid19 Funding,6219,Local Restrcns Supp Gt-Lckd,02/12/2020,Local Restrcns Supp Gt-Lckd,116372,Assets,FINANCE & CORPORATE SERVICES
2000.00,Central Helicopters Limited,Assets,Current Assets,Covid19 Funding,6219,Local Restrcns Supp Gt-Lckd,03/12/2020,Local Restrcns Supp Gt-Lckd,116409,Assets,FINANCE & CORPORATE SERVICES
2000.00,Ktmrestaurant Ltd,Assets,Current Assets,Covid19 Funding,6219,Local Restrcns Supp Gt-Lckd,08/12/2020,Local Restrcns Supp Gt-Lckd,116618,Assets,FINANCE & CORPORATE SERVICES
2000.00,Paklands Holdings Ltd,Assets,Current Assets,Covid19 Funding,6219,Local Restrcns Supp Gt-Lckd,08/12/2020,Local Restrcns Supp Gt-Lckd,116623,Assets,FINANCE & CORPORATE SERVICES
2000.00,Pop Shop Collaborative Ltd,Assets,Current Assets,Covid19 Funding,6219,Local Restrcns Supp Gt-Lckd,08/12/2020,Local Restrcns Supp Gt-Lckd,116624,Assets,FINANCE & CORPORATE SERVICES
2000.00,The Bay Therapy Centre Ltd,Assets,Current Assets,Covid19 Funding,6219,Local Restrcns Supp Gt-Lckd,01/12/2020,Local Restrcns Supp Gt-Lckd,116326,Assets,FINANCE & CORPORATE SERVICES
2000.00,Wolds Pub Co Ltd,Assets,Current Assets,Covid19 Funding,6219,Local Restrcns Supp Gt-Lckd,08/12/2020,Local Restrcns Supp Gt-Lckd,116634,Assets,FINANCE & CORPORATE SERVICES
2000.00,Bingham Town Sports Club,Assets,Current Assets,Covid19 Funding,6219,Local Restrcns Supp Gt-Lckd,18/12/2020,Local Restrcns Supp Gt-Lckd,117330,Assets,FINANCE & CORPORATE SERVICES
2000.00,Cranmer Arms Aslockton Ltd,Assets,Current Assets,Covid19 Funding,6219,Local Restrcns Supp Gt-Lckd,18/12/2020,Local Restrcns Supp Gt-Lckd,117323,Assets,FINANCE & CORPORATE SERVICES
2000.00,Mermaid One Ltd,Assets,Current Assets,Covid19 Funding,6219,Local Restrcns Supp Gt-Lckd,22/12/2020,Local Restrcns Supp Gt-Lckd,117420,Assets,FINANCE & CORPORATE SERVICES
2000.00,Moo Haven,Assets,Current Assets,Covid19 Funding,6219,Local Restrcns Supp Gt-Lckd,15/12/2020,Local Restrcns Supp Gt-Lckd,116888,Assets,FINANCE & CORPORATE SERVICES
2000.00,The Cottage Hotel Limited,Assets,Current Assets,Covid19 Funding,6219,Local Restrcns Supp Gt-Lckd,22/12/2020,Local Restrcns Supp Gt-Lckd,117421,Assets,FINANCE & CORPORATE SERVICES
1993.20,Nra Roofing & Flooring Services Ltd,Capital Expenditure,Transformation & Innovation,Bridgford Hall Refurbishment,0382,Contractors-Third Party,19/11/2020,Third Party Payments,114705,Capital Expenditure,CAPITAL
1990.00,Lg Futures,Finance & Corporate Services,Financial Services,Financial Services,4705,Subscriptions,19/11/2020,Supplies & Services,115150,Finance & Corporate Services,FINANCE & CORPORATE SERVICES
1950.00,Obam Lift Services Ltd,Capital Expenditure,Neighbourhoods,Disabled Facilities Grant,0332,Grants,27/10/2020,Supplies & Services,114348,Capital Expenditure,CAPITAL
1920.00,Via East Midlands Ltd,Capital Expenditure,Communities,West Park Fencing & Cp,0676,Contractors-Third Party,03/12/2020,Third Party Payments,116419,Capital Expenditure,COMMUNITIES
1908.97,South Notts Builders Ltd,Capital Expenditure,Neighbourhoods,Disabled Facilities Grant,0332,Grants,26/11/2020,Supplies & Services,115689,Capital Expenditure,CAPITAL
1875.00,Boston Seeds Ltd,Communities,Community Development,Environmental Promotion,1590,Contractors-Supplies & Servs,10/11/2020,Supplies & Services,114315,Communities,COMMUNITIES
1850.00,Riverside Truck Rentals Ltd,Neighbourhoods,Waste & Fleet Management,Glass Recycling & Bring Sites,8407,Hire Of Transport/Plant,13/10/2020,Transport Related Expenditure,113878,Neighbourhoods,FINANCE & CORPORATE SERVICES
1764.70,Reach Publishing Services Limited,Communities,Planning & Growth,Development Control,1161,Advertising,13/10/2020,Supplies & Services,113863,Communities,COMMUNITIES
1760.70,Edf Energy,Neighbourhoods,Leisure Contracts & Car Parks,Car Parks,1900,Electricity,01/12/2020,Premises Related Expenditure,114726,Neighbourhoods,FINANCE & CORPORATE SERVICES
1745.00,Imtech G&H Ltd,Communities,Community Development,Sir Julien Cahn Pavilion,8993,Planned Maintenance Recharge,14/12/2020,Supplies & Services,116436,Communities,FINANCE & CORPORATE SERVICES
1741.66,Service Level Management Ltd,Transformation,Bsu,Central Mail,4871,Postages,08/12/2020,Supplies & Services,114806,Transformation,TRANSFORMATION
1723.85,Reach Publishing Services Limited,Communities,Planning & Growth,Development Control,1161,Advertising,20/10/2020,Supplies & Services,114037,Communities,COMMUNITIES
1720.00,Maltby & Company,Transformation,Property Services,Street Nameplates & Pub. Signs,1920,Contractors-Supplies & Servs,15/10/2020,Supplies & Services,113782,Transformation,TRANSFORMATION
1701.28,Sse Payment Centre,Transformation,Customer Services,Customer Services,4807,Electricity,16/11/2020,Premises Related Expenditure,114513,Transformation,TRANSFORMATION
1696.48,Service Level Management Ltd,Transformation,Bsu,Central Mail,4871,Postages,24/11/2020,Supplies & Services,113799,Transformation,TRANSFORMATION
1690.00,Streetwise Environmental Ltd           1,Neighbourhoods,Environmental Health,Work In Default,1066,Legal & Professional Services,16/12/2020,Supplies & Services,116420,Neighbourhoods,NEIGHBOURHOODS
1670.00,Inform Cpi Ltd,Finance & Corporate Services,Revenues & Benefits,Nndr,1038,Legal & Professional Services,01/12/2020,Supplies & Services,114693,Finance & Corporate Services,FINANCE & CORPORATE SERVICES
1664.30,Aac Air Conditioning Ltd,Capital Expenditure,Transformation & Innovation,Cotgrave Masterplan,0303,Legal & Professional Services,22/10/2020,Supplies & Services,114092,Capital Expenditure,CAPITAL
1650.00,Origin Surveys Limited,Transformation,Property Services,Land Holdings,1884,Contractors-Supplies & Servs,09/12/2020,Supplies & Services,116310,Transformation,TRANSFORMATION
1643.48,Dolphin Mobility East Mids Ltd,Capital Expenditure,Neighbourhoods,Disabled Facilities Grant,0332,Grants,27/10/2020,Supplies & Services,114234,Capital Expenditure,CAPITAL
1619.86,Anokhi Beauty,Assets,Current Assets,Covid19 Funding,6219,Local Restrcns Supp Gt-Clsd,26/11/2020,Local Restrcns Supp Gt-Clsd,116017,Assets,FINANCE & CORPORATE SERVICES
1610.00,Commercial Surface Solutions Ltd,Neighbourhoods,Leisure Contracts & Car Parks,Car Parks,1900,Responsive Works - Buildings,16/12/2020,Premises Related Expenditure,116826,Neighbourhoods,FINANCE & CORPORATE SERVICES
1608.00,Attenborough Industrial Doors,Transformation,Property Services,Colliers Ph 2,1892,Service Maintenance Contracts,30/12/2020,Premises Related Expenditure,116816,Transformation,TRANSFORMATION
1607.51,Tuskerdirect Limited,Assets,Non Current Assets,Tusker Car Scheme,6012,Tusker Car Scheme,22/12/2020,Transfers Expenditure,116454,Assets,FINANCE & CORPORATE SERVICES
1600.00,Bentley Project Management,Capital Expenditure,Transformation & Innovation,Cotgrave Phase 2,0387,Legal & Professional Services,20/10/2020,Supplies & Services,113785,Capital Expenditure,CAPITAL
1600.00,Bentley Project Management,Capital Expenditure,Transformation & Innovation,Cotgrave Phase 2,0387,Legal & Professional Services,19/11/2020,Supplies & Services,114707,Capital Expenditure,CAPITAL
1600.00,Dta Electrical,Communities,Community Development,Gresham,8950,Planned Maintenance Recharge,13/10/2020,Supplies & Services,113688,Communities,FINANCE & CORPORATE SERVICES
1600.00,Bentley Project Management,Capital Expenditure,Transformation & Innovation,Cotgrave Phase 2,0387,Legal & Professional Services,18/12/2020,Supplies & Services,116417,Capital Expenditure,CAPITAL
1600.00,Riba Enterprises Ltd,Transformation,Property Services,Property Services,4713,Subscriptions,14/12/2020,Supplies & Services,116595,Transformation,TRANSFORMATION
1589.40,Prestige Air Technology Ltd,Transformation,Property Services,Arena Civic Centre,4718,Service Maintenance Contracts,22/12/2020,Premises Related Expenditure,116606,Transformation,TRANSFORMATION
1575.81,Haven Power Limited,Transformation,Property Services,Castle Donington,1863,Electricity,23/10/2020,Premises Related Expenditure,114119,Transformation,TRANSFORMATION
1550.28,Broxtowe Borough Council,Neighbourhoods,Leisure Contracts & Car Parks,Car Parks,1900,Maintenance Contracts - S&S,15/12/2020,Supplies & Services,116590,Neighbourhoods,FINANCE & CORPORATE SERVICES
1544.50,Trent Valley Plumbing & Build,Capital Expenditure,Neighbourhoods,Disabled Facilities Grant,0332,Grants,27/10/2020,Supplies & Services,114237,Capital Expenditure,CAPITAL
1533.84,Reach Publishing Services Limited,Communities,Planning & Growth,Development Control,1161,Advertising,08/12/2020,Supplies & Services,116425,Communities,COMMUNITIES
1500.00,Dta Electrical,Neighbourhoods,Leisure Contracts & Car Parks,Car Parks,1900,Planned Maintenance Recharge,13/10/2020,Supplies & Services,113852,Neighbourhoods,FINANCE & CORPORATE SERVICES
1500.00,Zurich Municipal,Finance & Corporate Services,Financial Services,Liability Claims,4921,Miscellaneous Ins Premiums,19/11/2020,Supplies & Services,114712,Finance & Corporate Services,FINANCE & CORPORATE SERVICES
1500.00,Ellis Interiors (Nottingham) Ltd,Assets,Current Assets,Covid19 Funding,6219,Addnl Restrictions Grant,13/11/2020,Addnl Restrictions Grant,114878,Assets,FINANCE & CORPORATE SERVICES
1500.00,Nottinghamshire Swim School Llp,Assets,Current Assets,Covid19 Funding,6219,Addnl Restrictions Grant,26/11/2020,Addnl Restrictions Grant,115992,Assets,FINANCE & CORPORATE SERVICES
1500.00,Treat Boutique (Nottingham) Ltd.,Assets,Current Assets,Covid19 Funding,6219,Addnl Restrictions Grant,30/11/2020,Addnl Restrictions Grant,116187,Assets,FINANCE & CORPORATE SERVICES
1500.00,Dta Electrical,Transformation,Property Services,"Colliers, Cotgrave",1898,Responsive Works - Buildings,16/12/2020,Premises Related Expenditure,116792,Transformation,TRANSFORMATION
1500.00,20205070019,Assets,Current Assets,Covid19 Funding,6219,Addnl Restrictions Grant,24/11/2020,Addnl Restrictions Grant,115244,Assets,FINANCE & CORPORATE SERVICES
1500.00,Abbey Road Music Ltd,Assets,Current Assets,Covid19 Funding,6219,Addnl Restrictions Grant,24/11/2020,Addnl Restrictions Grant,115804,Assets,FINANCE & CORPORATE SERVICES
1500.00,A Cut Above,Assets,Current Assets,Covid19 Funding,6219,Addnl Restrictions Grant,20/11/2020,Addnl Restrictions Grant,115497,Assets,FINANCE & CORPORATE SERVICES
1500.00,Add Embroidery,Assets,Current Assets,Covid19 Funding,6219,Addnl Restrictions Grant,16/11/2020,Addnl Restrictions Grant,115046,Assets,FINANCE & CORPORATE SERVICES
1500.00,Adjust Massage Ltd,Assets,Current Assets,Covid19 Funding,6219,Addnl Restrictions Grant,16/11/2020,Addnl Restrictions Grant,115043,Assets,FINANCE & CORPORATE SERVICES
1500.00,Agb Beauty Nail Therapy Ltd,Assets,Current Assets,Covid19 Funding,6219,Addnl Restrictions Grant,20/11/2020,Addnl Restrictions Grant,115509,Assets,FINANCE & CORPORATE SERVICES
1500.00,Aidys Barbershop,Assets,Current Assets,Covid19 Funding,6219,Addnl Restrictions Grant,20/11/2020,Addnl Restrictions Grant,115484,Assets,FINANCE & CORPORATE SERVICES
1500.00,Ajs Stidio,Assets,Current Assets,Covid19 Funding,6219,Addnl Restrictions Grant,20/11/2020,Addnl Restrictions Grant,115482,Assets,FINANCE & CORPORATE SERVICES
1500.00,Alicescatering Ltd T/A Alice'S Teashop,Assets,Current Assets,Covid19 Funding,6219,Addnl Restrictions Grant,16/11/2020,Addnl Restrictions Grant,115027,Assets,FINANCE & CORPORATE SERVICES
1500.00,Anokhi Beauty,Assets,Current Assets,Covid19 Funding,6219,Addnl Restrictions Grant,26/11/2020,Addnl Restrictions Grant,116017,Assets,FINANCE & CORPORATE SERVICES
1500.00,Aquarius Nails Ltd,Assets,Current Assets,Covid19 Funding,6219,Addnl Restrictions Grant,26/11/2020,Addnl Restrictions Grant,115967,Assets,FINANCE & CORPORATE SERVICES
1500.00,Arrowmaker Pubs Ltd,Assets,Current Assets,Covid19 Funding,6219,Addnl Restrictions Grant,20/11/2020,Addnl Restrictions Grant,115505,Assets,FINANCE & CORPORATE SERVICES
1500.00,Artisan,Assets,Current Assets,Covid19 Funding,6219,Addnl Restrictions Grant,26/11/2020,Addnl Restrictions Grant,115981,Assets,FINANCE & CORPORATE SERVICES
1500.00,Artvine Gallery,Assets,Current Assets,Covid19 Funding,6219,Addnl Restrictions Grant,18/11/2020,Addnl Restrictions Grant,115275,Assets,FINANCE & CORPORATE SERVICES
1500.00,Autobarn Sports Cars Limited,Assets,Current Assets,Covid19 Funding,6219,Addnl Restrictions Grant,26/11/2020,Addnl Restrictions Grant,116001,Assets,FINANCE & CORPORATE SERVICES
1500.00,Avid Retail Projects,Assets,Current Assets,Covid19 Funding,6219,Addnl Restrictions Grant,20/11/2020,Addnl Restrictions Grant,115511,Assets,FINANCE & CORPORATE SERVICES
1500.00,Barber Queue,Assets,Current Assets,Covid19 Funding,6219,Addnl Restrictions Grant,20/11/2020,Addnl Restrictions Grant,115491,Assets,FINANCE & CORPORATE SERVICES
1500.00,Beautique@Rot Limited,Assets,Current Assets,Covid19 Funding,6219,Addnl Restrictions Grant,24/11/2020,Addnl Restrictions Grant,115746,Assets,FINANCE & CORPORATE SERVICES
1500.00,Beauty Clinic,Assets,Current Assets,Covid19 Funding,6219,Addnl Restrictions Grant,13/11/2020,Addnl Restrictions Grant,114882,Assets,FINANCE & CORPORATE SERVICES
1500.00,Beehive Hair Design Ltd,Assets,Current Assets,Covid19 Funding,6219,Addnl Restrictions Grant,26/11/2020,Addnl Restrictions Grant,116000,Assets,FINANCE & CORPORATE SERVICES
1500.00,Belle Vue Stables,Assets,Current Assets,Covid19 Funding,6219,Addnl Restrictions Grant,18/11/2020,Addnl Restrictions Grant,115240,Assets,FINANCE & CORPORATE SERVICES
1500.00,Belvoir Carpet And Flooring,Assets,Current Assets,Covid19 Funding,6219,Addnl Restrictions Grant,13/11/2020,Addnl Restrictions Grant,114888,Assets,FINANCE & CORPORATE SERVICES
1500.00,Beyond The Fringe,Assets,Current Assets,Covid19 Funding,6219,Addnl Restrictions Grant,24/11/2020,Addnl Restrictions Grant,115739,Assets,FINANCE & CORPORATE SERVICES
1500.00,Beyond The Looking Glass,Assets,Current Assets,Covid19 Funding,6219,Addnl Restrictions Grant,18/11/2020,Addnl Restrictions Grant,115286,Assets,FINANCE & CORPORATE SERVICES
1500.00,Bingham Boutique,Assets,Current Assets,Covid19 Funding,6219,Addnl Restrictions Grant,20/11/2020,Addnl Restrictions Grant,115247,Assets,FINANCE & CORPORATE SERVICES
1500.00,Bingham Flooring,Assets,Current Assets,Covid19 Funding,6219,Addnl Restrictions Grant,18/11/2020,Addnl Restrictions Grant,115237,Assets,FINANCE & CORPORATE SERVICES
1500.00,Bingham Nails And Beauty Ltd,Assets,Current Assets,Covid19 Funding,6219,Addnl Restrictions Grant,18/11/2020,Addnl Restrictions Grant,115248,Assets,FINANCE & CORPORATE SERVICES
1500.00,Bingham Rugby Football Club Ltd,Assets,Current Assets,Covid19 Funding,6219,Addnl Restrictions Grant,13/11/2020,Addnl Restrictions Grant,114907,Assets,FINANCE & CORPORATE SERVICES
1500.00,Bliss Beauty,Assets,Current Assets,Covid19 Funding,6219,Addnl Restrictions Grant,13/11/2020,Addnl Restrictions Grant,114901,Assets,FINANCE & CORPORATE SERVICES
1500.00,Blu Barbering Limited,Assets,Current Assets,Covid19 Funding,6219,Addnl Restrictions Grant,19/11/2020,Addnl Restrictions Grant,115427,Assets,FINANCE & CORPORATE SERVICES
1500.00,Blu Hair And Tanning Ltd,Assets,Current Assets,Covid19 Funding,6219,Addnl Restrictions Grant,16/11/2020,Addnl Restrictions Grant,114995,Assets,FINANCE & CORPORATE SERVICES
1500.00,Boost Your Body Ltd,Assets,Current Assets,Covid19 Funding,6219,Addnl Restrictions Grant,18/11/2020,Addnl Restrictions Grant,115250,Assets,FINANCE & CORPORATE SERVICES
1500.00,Bread And Butterflies Ltd,Assets,Current Assets,Covid19 Funding,6219,Addnl Restrictions Grant,13/11/2020,Addnl Restrictions Grant,114908,Assets,FINANCE & CORPORATE SERVICES
1500.00,Bridgford Carpets And Furnishings Co. Ltd,Assets,Current Assets,Covid19 Funding,6219,Addnl Restrictions Grant,18/11/2020,Addnl Restrictions Grant,115297,Assets,FINANCE & CORPORATE SERVICES
1500.00,Bryer One Limited,Assets,Current Assets,Covid19 Funding,6219,Addnl Restrictions Grant,20/11/2020,Addnl Restrictions Grant,115488,Assets,FINANCE & CORPORATE SERVICES
1500.00,Burns Hair Design,Assets,Current Assets,Covid19 Funding,6219,Addnl Restrictions Grant,20/11/2020,Addnl Restrictions Grant,115532,Assets,FINANCE & CORPORATE SERVICES
1500.00,Caaan Farm Riding School,Assets,Current Assets,Covid19 Funding,6219,Addnl Restrictions Grant,20/11/2020,Addnl Restrictions Grant,115510,Assets,FINANCE & CORPORATE SERVICES
1500.00,Cafe Olive,Assets,Current Assets,Covid19 Funding,6219,Addnl Restrictions Grant,18/11/2020,Addnl Restrictions Grant,115259,Assets,FINANCE & CORPORATE SERVICES
1500.00,Cafe Piano (Radcliffe On Trent) Ltd,Assets,Current Assets,Covid19 Funding,6219,Addnl Restrictions Grant,24/11/2020,Addnl Restrictions Grant,115807,Assets,FINANCE & CORPORATE SERVICES
1500.00,Canaan Farm Riding School,Assets,Current Assets,Covid19 Funding,6219,Addnl Restrictions Grant,20/11/2020,Addnl Restrictions Grant,115519,Assets,FINANCE & CORPORATE SERVICES
1500.00,Canine Academy Ltd,Assets,Current Assets,Covid19 Funding,6219,Addnl Restrictions Grant,16/11/2020,Addnl Restrictions Grant,115034,Assets,FINANCE & CORPORATE SERVICES
1500.00,Canterburys Of Keyworth Limited,Assets,Current Assets,Covid19 Funding,6219,Addnl Restrictions Grant,30/11/2020,Addnl Restrictions Grant,116176,Assets,FINANCE & CORPORATE SERVICES
1500.00,Captcha Photography Ltd,Assets,Current Assets,Covid19 Funding,6219,Addnl Restrictions Grant,18/11/2020,Addnl Restrictions Grant,115311,Assets,FINANCE & CORPORATE SERVICES
1500.00,Carol Henderson T/A La Sante House,Assets,Current Assets,Covid19 Funding,6219,Addnl Restrictions Grant,18/11/2020,Addnl Restrictions Grant,115315,Assets,FINANCE & CORPORATE SERVICES
1500.00,Carpet Image Limited,Assets,Current Assets,Covid19 Funding,6219,Addnl Restrictions Grant,24/11/2020,Addnl Restrictions Grant,115801,Assets,FINANCE & CORPORATE SERVICES
1500.00,C E Farnsworth,Assets,Current Assets,Covid19 Funding,6219,Addnl Restrictions Grant,16/11/2020,Addnl Restrictions Grant,114986,Assets,FINANCE & CORPORATE SERVICES
1500.00,Chardas Country Cattery,Assets,Current Assets,Covid19 Funding,6219,Addnl Restrictions Grant,13/11/2020,Addnl Restrictions Grant,114906,Assets,FINANCE & CORPORATE SERVICES
1500.00,Charlotte Swan,Assets,Current Assets,Covid19 Funding,6219,Addnl Restrictions Grant,20/11/2020,Addnl Restrictions Grant,115481,Assets,FINANCE & CORPORATE SERVICES
1500.00,Cheff Ltd,Assets,Current Assets,Covid19 Funding,6219,Addnl Restrictions Grant,16/11/2020,Addnl Restrictions Grant,115030,Assets,FINANCE & CORPORATE SERVICES
1500.00,Chefs Cafe,Assets,Current Assets,Covid19 Funding,6219,Addnl Restrictions Grant,18/11/2020,Addnl Restrictions Grant,115246,Assets,FINANCE & CORPORATE SERVICES
1500.00,Chi Boutique,Assets,Current Assets,Covid19 Funding,6219,Addnl Restrictions Grant,13/11/2020,Addnl Restrictions Grant,114890,Assets,FINANCE & CORPORATE SERVICES
1500.00,Chic Boutique,Assets,Current Assets,Covid19 Funding,6219,Addnl Restrictions Grant,18/11/2020,Addnl Restrictions Grant,115233,Assets,FINANCE & CORPORATE SERVICES
1500.00,Chk Barbers,Assets,Current Assets,Covid19 Funding,6219,Addnl Restrictions Grant,20/11/2020,Addnl Restrictions Grant,115490,Assets,FINANCE & CORPORATE SERVICES
1500.00,Cjl Hairstudio,Assets,Current Assets,Covid19 Funding,6219,Addnl Restrictions Grant,16/11/2020,Addnl Restrictions Grant,115052,Assets,FINANCE & CORPORATE SERVICES
1500.00,Classic Cuts,Assets,Current Assets,Covid19 Funding,6219,Addnl Restrictions Grant,16/11/2020,Addnl Restrictions Grant,115009,Assets,FINANCE & CORPORATE SERVICES
1500.00,Coach Gap Cafe,Assets,Current Assets,Covid19 Funding,6219,Addnl Restrictions Grant,16/11/2020,Addnl Restrictions Grant,115045,Assets,FINANCE & CORPORATE SERVICES
1500.00,Colbeck & Co Ltd.,Assets,Current Assets,Covid19 Funding,6219,Addnl Restrictions Grant,13/11/2020,Addnl Restrictions Grant,114872,Assets,FINANCE & CORPORATE SERVICES
1500.00,Colour My Claws,Assets,Current Assets,Covid19 Funding,6219,Addnl Restrictions Grant,26/11/2020,Addnl Restrictions Grant,115994,Assets,FINANCE & CORPORATE SERVICES
1500.00,Compound Strength & Conditioning,Assets,Current Assets,Covid19 Funding,6219,Addnl Restrictions Grant,18/11/2020,Addnl Restrictions Grant,115280,Assets,FINANCE & CORPORATE SERVICES
1500.00,Costock Caravan Services,Assets,Current Assets,Covid19 Funding,6219,Addnl Restrictions Grant,18/11/2020,Addnl Restrictions Grant,115307,Assets,FINANCE & CORPORATE SERVICES
1500.00,Cotgrave Flooring Outlet,Assets,Current Assets,Covid19 Funding,6219,Addnl Restrictions Grant,24/11/2020,Addnl Restrictions Grant,115749,Assets,FINANCE & CORPORATE SERVICES
1500.00,Courtyard Catering,Assets,Current Assets,Covid19 Funding,6219,Addnl Restrictions Grant,16/11/2020,Addnl Restrictions Grant,115026,Assets,FINANCE & CORPORATE SERVICES
1500.00,Create! West Bridgford,Assets,Current Assets,Covid19 Funding,6219,Addnl Restrictions Grant,16/11/2020,Addnl Restrictions Grant,114983,Assets,FINANCE & CORPORATE SERVICES
1500.00,Cut N Curl,Assets,Current Assets,Covid19 Funding,6219,Addnl Restrictions Grant,16/11/2020,Addnl Restrictions Grant,115031,Assets,FINANCE & CORPORATE SERVICES
1500.00,Daisy Daisy Ltd,Assets,Current Assets,Covid19 Funding,6219,Addnl Restrictions Grant,24/11/2020,Addnl Restrictions Grant,115774,Assets,FINANCE & CORPORATE SERVICES
1500.00,Dan @ Silk Ltd T/A Silk For Hair,Assets,Current Assets,Covid19 Funding,6219,Addnl Restrictions Grant,24/11/2020,Addnl Restrictions Grant,115794,Assets,FINANCE & CORPORATE SERVICES
1500.00,David Richards Jewellers Ltd,Assets,Current Assets,Covid19 Funding,6219,Addnl Restrictions Grant,26/11/2020,Addnl Restrictions Grant,115971,Assets,FINANCE & CORPORATE SERVICES
1500.00,Deano'S Barbershop,Assets,Current Assets,Covid19 Funding,6219,Addnl Restrictions Grant,19/11/2020,Addnl Restrictions Grant,115421,Assets,FINANCE & CORPORATE SERVICES
1500.00,Deano'S Barbershop Bingham,Assets,Current Assets,Covid19 Funding,6219,Addnl Restrictions Grant,19/11/2020,Addnl Restrictions Grant,115422,Assets,FINANCE & CORPORATE SERVICES
1500.00,Desperate Measures (Gb) Ltd,Assets,Current Assets,Covid19 Funding,6219,Addnl Restrictions Grant,20/11/2020,Addnl Restrictions Grant,115533,Assets,FINANCE & CORPORATE SERVICES
1500.00,Dove Cottage Day Hospice Ltd,Assets,Current Assets,Covid19 Funding,6219,Addnl Restrictions Grant,30/11/2020,Addnl Restrictions Grant,116185,Assets,FINANCE & CORPORATE SERVICES
1500.00,Dover Street Marketing Ltd,Assets,Current Assets,Covid19 Funding,6219,Addnl Restrictions Grant,26/11/2020,Addnl Restrictions Grant,115996,Assets,FINANCE & CORPORATE SERVICES
1500.00,Eden Hair Boutique,Assets,Current Assets,Covid19 Funding,6219,Addnl Restrictions Grant,18/11/2020,Addnl Restrictions Grant,115232,Assets,FINANCE & CORPORATE SERVICES
1500.00,Edwalton Coffee And Snack Bar,Assets,Current Assets,Covid19 Funding,6219,Addnl Restrictions Grant,18/11/2020,Addnl Restrictions Grant,115300,Assets,FINANCE & CORPORATE SERVICES
1500.00,Embellish Beauty Midlands Ltd,Assets,Current Assets,Covid19 Funding,6219,Addnl Restrictions Grant,16/11/2020,Addnl Restrictions Grant,115032,Assets,FINANCE & CORPORATE SERVICES
1500.00,Emma Gordon Trading As Keirl Hairdressing,Assets,Current Assets,Covid19 Funding,6219,Addnl Restrictions Grant,18/11/2020,Addnl Restrictions Grant,115251,Assets,FINANCE & CORPORATE SERVICES
1500.00,Erasmus & Son Ltd,Assets,Current Assets,Covid19 Funding,6219,Addnl Restrictions Grant,18/11/2020,Addnl Restrictions Grant,115260,Assets,FINANCE & CORPORATE SERVICES
1500.00,Estelle Beauty Therapy,Assets,Current Assets,Covid19 Funding,6219,Addnl Restrictions Grant,13/11/2020,Addnl Restrictions Grant,114881,Assets,FINANCE & CORPORATE SERVICES
1500.00,Fisher Dye Limited,Assets,Current Assets,Covid19 Funding,6219,Addnl Restrictions Grant,18/11/2020,Addnl Restrictions Grant,115283,Assets,FINANCE & CORPORATE SERVICES
1500.00,Flowers On Main Street,Assets,Current Assets,Covid19 Funding,6219,Addnl Restrictions Grant,20/11/2020,Addnl Restrictions Grant,115479,Assets,FINANCE & CORPORATE SERVICES
1500.00,Foxy Air-Service Ltd,Assets,Current Assets,Covid19 Funding,6219,Addnl Restrictions Grant,26/11/2020,Addnl Restrictions Grant,115989,Assets,FINANCE & CORPORATE SERVICES
1500.00,Francesco Senette Ltd,Assets,Current Assets,Covid19 Funding,6219,Addnl Restrictions Grant,20/11/2020,Addnl Restrictions Grant,115524,Assets,FINANCE & CORPORATE SERVICES
1500.00,Freedom Dance & Performance,Assets,Current Assets,Covid19 Funding,6219,Addnl Restrictions Grant,16/11/2020,Addnl Restrictions Grant,115012,Assets,FINANCE & CORPORATE SERVICES
1500.00,Fsm Centres Limited,Assets,Current Assets,Covid19 Funding,6219,Addnl Restrictions Grant,26/11/2020,Addnl Restrictions Grant,115984,Assets,FINANCE & CORPORATE SERVICES
1500.00,Gino'S Ristorante Ltd,Assets,Current Assets,Covid19 Funding,6219,Addnl Restrictions Grant,20/11/2020,Addnl Restrictions Grant,115494,Assets,FINANCE & CORPORATE SERVICES
1500.00,Glebe House Cattery,Assets,Current Assets,Covid19 Funding,6219,Addnl Restrictions Grant,16/11/2020,Addnl Restrictions Grant,114998,Assets,FINANCE & CORPORATE SERVICES
1500.00,Globalscale Ltd,Assets,Current Assets,Covid19 Funding,6219,Addnl Restrictions Grant,26/11/2020,Addnl Restrictions Grant,116004,Assets,FINANCE & CORPORATE SERVICES
1500.00,Googie+��+�g���+�g�p�s Flowerslimited,Assets,Current Assets,Covid19 Funding,6219,Addnl Restrictions Grant,16/11/2020,Addnl Restrictions Grant,115017,Assets,FINANCE & CORPORATE SERVICES
1500.00,Gourmet Coffee Bar & Kitchen Ltd,Assets,Current Assets,Covid19 Funding,6219,Addnl Restrictions Grant,18/11/2020,Addnl Restrictions Grant,115258,Assets,FINANCE & CORPORATE SERVICES
1500.00,Grannies Ltd,Assets,Current Assets,Covid19 Funding,6219,Addnl Restrictions Grant,20/11/2020,Addnl Restrictions Grant,115496,Assets,FINANCE & CORPORATE SERVICES
1500.00,Greg Hill Flooring,Assets,Current Assets,Covid19 Funding,6219,Addnl Restrictions Grant,20/11/2020,Addnl Restrictions Grant,115521,Assets,FINANCE & CORPORATE SERVICES
1500.00,Hair By Antonia Waite,Assets,Current Assets,Covid19 Funding,6219,Addnl Restrictions Grant,26/11/2020,Addnl Restrictions Grant,115990,Assets,FINANCE & CORPORATE SERVICES
1500.00,Hairbycarlymarcouse,Assets,Current Assets,Covid19 Funding,6219,Addnl Restrictions Grant,26/11/2020,Addnl Restrictions Grant,116013,Assets,FINANCE & CORPORATE SERVICES
1500.00,Hair Matters,Assets,Current Assets,Covid19 Funding,6219,Addnl Restrictions Grant,16/11/2020,Addnl Restrictions Grant,115036,Assets,FINANCE & CORPORATE SERVICES
1500.00,Hair Place,Assets,Current Assets,Covid19 Funding,6219,Addnl Restrictions Grant,16/11/2020,Addnl Restrictions Grant,114994,Assets,FINANCE & CORPORATE SERVICES
1500.00,Hardy'S Barber,Assets,Current Assets,Covid19 Funding,6219,Addnl Restrictions Grant,30/11/2020,Addnl Restrictions Grant,116170,Assets,FINANCE & CORPORATE SERVICES
1500.00,Harveys Mens Hair Salon,Assets,Current Assets,Covid19 Funding,6219,Addnl Restrictions Grant,20/11/2020,Addnl Restrictions Grant,115478,Assets,FINANCE & CORPORATE SERVICES
1500.00,Heading Out Hair Salon,Assets,Current Assets,Covid19 Funding,6219,Addnl Restrictions Grant,18/11/2020,Addnl Restrictions Grant,115296,Assets,FINANCE & CORPORATE SERVICES
1500.00,Heavenly Beauty By Harriet Ltd,Assets,Current Assets,Covid19 Funding,6219,Addnl Restrictions Grant,13/11/2020,Addnl Restrictions Grant,114874,Assets,FINANCE & CORPORATE SERVICES
1500.00,Helen Goldsbury,Assets,Current Assets,Covid19 Funding,6219,Addnl Restrictions Grant,20/11/2020,Addnl Restrictions Grant,115516,Assets,FINANCE & CORPORATE SERVICES
1500.00,Hidden Salon,Assets,Current Assets,Covid19 Funding,6219,Addnl Restrictions Grant,26/11/2020,Addnl Restrictions Grant,116011,Assets,FINANCE & CORPORATE SERVICES
1500.00,High Point Polo,Assets,Current Assets,Covid19 Funding,6219,Addnl Restrictions Grant,24/11/2020,Addnl Restrictions Grant,115750,Assets,FINANCE & CORPORATE SERVICES
1500.00,Holme Pierrepont Hall,Assets,Current Assets,Covid19 Funding,6219,Addnl Restrictions Grant,24/11/2020,Addnl Restrictions Grant,115734,Assets,FINANCE & CORPORATE SERVICES
1500.00,Ideal Beauty Products,Assets,Current Assets,Covid19 Funding,6219,Addnl Restrictions Grant,26/11/2020,Addnl Restrictions Grant,115956,Assets,FINANCE & CORPORATE SERVICES
1500.00,Indian Nights,Assets,Current Assets,Covid19 Funding,6219,Addnl Restrictions Grant,18/11/2020,Addnl Restrictions Grant,115287,Assets,FINANCE & CORPORATE SERVICES
1500.00,Individual,Assets,Current Assets,Covid19 Funding,6219,Addnl Restrictions Grant,20/11/2020,Addnl Restrictions Grant,115500,Assets,FINANCE & CORPORATE SERVICES
1500.00,Individuals Hair Design Ltd,Assets,Current Assets,Covid19 Funding,6219,Addnl Restrictions Grant,20/11/2020,Addnl Restrictions Grant,115539,Assets,FINANCE & CORPORATE SERVICES
1500.00,Individuals Hair Design Ltd,Assets,Current Assets,Covid19 Funding,6219,Addnl Restrictions Grant,24/11/2020,Addnl Restrictions Grant,115736,Assets,FINANCE & CORPORATE SERVICES
1500.00,I Nights Ltd,Assets,Current Assets,Covid19 Funding,6219,Addnl Restrictions Grant,26/11/2020,Addnl Restrictions Grant,115961,Assets,FINANCE & CORPORATE SERVICES
1500.00,Invisible Touch Tanning And Beauty Ltd,Assets,Current Assets,Covid19 Funding,6219,Addnl Restrictions Grant,16/11/2020,Addnl Restrictions Grant,114992,Assets,FINANCE & CORPORATE SERVICES
1500.00,Istanbul Barber,Assets,Current Assets,Covid19 Funding,6219,Addnl Restrictions Grant,24/11/2020,Addnl Restrictions Grant,115740,Assets,FINANCE & CORPORATE SERVICES
1500.00,James White Hair,Assets,Current Assets,Covid19 Funding,6219,Addnl Restrictions Grant,18/11/2020,Addnl Restrictions Grant,115245,Assets,FINANCE & CORPORATE SERVICES
1500.00,J And Barbers Ltd,Assets,Current Assets,Covid19 Funding,6219,Addnl Restrictions Grant,16/11/2020,Addnl Restrictions Grant,115028,Assets,FINANCE & CORPORATE SERVICES
1500.00,Jane Lewis Fitness,Assets,Current Assets,Covid19 Funding,6219,Addnl Restrictions Grant,26/11/2020,Addnl Restrictions Grant,115951,Assets,FINANCE & CORPORATE SERVICES
1500.00,Jansons Leisure & Fishery Ltd,Assets,Current Assets,Covid19 Funding,6219,Addnl Restrictions Grant,26/11/2020,Addnl Restrictions Grant,116003,Assets,FINANCE & CORPORATE SERVICES
1500.00,Jaspers Cafe,Assets,Current Assets,Covid19 Funding,6219,Addnl Restrictions Grant,18/11/2020,Addnl Restrictions Grant,115256,Assets,FINANCE & CORPORATE SERVICES
1500.00,J.Dickson Beauty,Assets,Current Assets,Covid19 Funding,6219,Addnl Restrictions Grant,13/11/2020,Addnl Restrictions Grant,114898,Assets,FINANCE & CORPORATE SERVICES
1500.00,J Dickson Hair Ltd,Assets,Current Assets,Covid19 Funding,6219,Addnl Restrictions Grant,13/11/2020,Addnl Restrictions Grant,114891,Assets,FINANCE & CORPORATE SERVICES
1500.00,J&J Hairdressing,Assets,Current Assets,Covid19 Funding,6219,Addnl Restrictions Grant,18/11/2020,Addnl Restrictions Grant,115235,Assets,FINANCE & CORPORATE SERVICES
1500.00,J.Nights Barbershop,Assets,Current Assets,Covid19 Funding,6219,Addnl Restrictions Grant,13/11/2020,Addnl Restrictions Grant,114889,Assets,FINANCE & CORPORATE SERVICES
1500.00,John Mclean Photography,Assets,Current Assets,Covid19 Funding,6219,Addnl Restrictions Grant,18/11/2020,Addnl Restrictions Grant,115231,Assets,FINANCE & CORPORATE SERVICES
1500.00,Joyce'S Hairdressers,Assets,Current Assets,Covid19 Funding,6219,Addnl Restrictions Grant,24/11/2020,Addnl Restrictions Grant,115793,Assets,FINANCE & CORPORATE SERVICES
1500.00,Julie Holland T/A Love And Piste,Assets,Current Assets,Covid19 Funding,6219,Addnl Restrictions Grant,13/11/2020,Addnl Restrictions Grant,114866,Assets,FINANCE & CORPORATE SERVICES
1500.00,Julie'S Design Manufacturing Jewellers,Assets,Current Assets,Covid19 Funding,6219,Addnl Restrictions Grant,18/11/2020,Addnl Restrictions Grant,115241,Assets,FINANCE & CORPORATE SERVICES
1500.00,Just Beauty,Assets,Current Assets,Covid19 Funding,6219,Addnl Restrictions Grant,24/11/2020,Addnl Restrictions Grant,115800,Assets,FINANCE & CORPORATE SERVICES
1500.00,Karen Blackwell,Assets,Current Assets,Covid19 Funding,6219,Addnl Restrictions Grant,30/11/2020,Addnl Restrictions Grant,116203,Assets,FINANCE & CORPORATE SERVICES
1500.00,Kds Furniture Ltd,Assets,Current Assets,Covid19 Funding,6219,Addnl Restrictions Grant,26/11/2020,Addnl Restrictions Grant,116024,Assets,FINANCE & CORPORATE SERVICES
1500.00,Kemp & Sons Barbering Ltd,Assets,Current Assets,Covid19 Funding,6219,Addnl Restrictions Grant,18/11/2020,Addnl Restrictions Grant,115289,Assets,FINANCE & CORPORATE SERVICES
1500.00,Kew Beauty Clinic,Assets,Current Assets,Covid19 Funding,6219,Addnl Restrictions Grant,16/11/2020,Addnl Restrictions Grant,114984,Assets,FINANCE & CORPORATE SERVICES
1500.00,Keyworth Barber,Assets,Current Assets,Covid19 Funding,6219,Addnl Restrictions Grant,16/11/2020,Addnl Restrictions Grant,114993,Assets,FINANCE & CORPORATE SERVICES
1500.00,Kinoulton Cricket Club,Assets,Current Assets,Covid19 Funding,6219,Addnl Restrictions Grant,18/11/2020,Addnl Restrictions Grant,115318,Assets,FINANCE & CORPORATE SERVICES
1500.00,Klb Beauty,Assets,Current Assets,Covid19 Funding,6219,Addnl Restrictions Grant,24/11/2020,Addnl Restrictions Grant,115761,Assets,FINANCE & CORPORATE SERVICES
1500.00,L&A Hairdressing & Beauty Salon,Assets,Current Assets,Covid19 Funding,6219,Addnl Restrictions Grant,16/11/2020,Addnl Restrictions Grant,115035,Assets,FINANCE & CORPORATE SERVICES
1500.00,La Storia Limited,Assets,Current Assets,Covid19 Funding,6219,Addnl Restrictions Grant,16/11/2020,Addnl Restrictions Grant,115040,Assets,FINANCE & CORPORATE SERVICES
1500.00,Laura James Ta The Sun Inn,Assets,Current Assets,Covid19 Funding,6219,Addnl Restrictions Grant,24/11/2020,Addnl Restrictions Grant,115795,Assets,FINANCE & CORPORATE SERVICES
1500.00,Lavender Nails,Assets,Current Assets,Covid19 Funding,6219,Addnl Restrictions Grant,26/11/2020,Addnl Restrictions Grant,115999,Assets,FINANCE & CORPORATE SERVICES
1500.00,Lcg Hair Ltd,Assets,Current Assets,Covid19 Funding,6219,Addnl Restrictions Grant,26/11/2020,Addnl Restrictions Grant,115993,Assets,FINANCE & CORPORATE SERVICES
1500.00,L.G Nails & Beauty,Assets,Current Assets,Covid19 Funding,6219,Addnl Restrictions Grant,13/11/2020,Addnl Restrictions Grant,114865,Assets,FINANCE & CORPORATE SERVICES
1500.00,Lincolnshire Swim School Llp,Assets,Current Assets,Covid19 Funding,6219,Addnl Restrictions Grant,16/11/2020,Addnl Restrictions Grant,115007,Assets,FINANCE & CORPORATE SERVICES
1500.00,Lings Lane Riding Stables Ltd,Assets,Current Assets,Covid19 Funding,6219,Addnl Restrictions Grant,20/11/2020,Addnl Restrictions Grant,115485,Assets,FINANCE & CORPORATE SERVICES
1500.00,Lisa & Dean Daws T/A Blu,Assets,Current Assets,Covid19 Funding,6219,Addnl Restrictions Grant,16/11/2020,Addnl Restrictions Grant,115023,Assets,FINANCE & CORPORATE SERVICES
1500.00,Lisas Barber Shop,Assets,Current Assets,Covid19 Funding,6219,Addnl Restrictions Grant,30/11/2020,Addnl Restrictions Grant,116196,Assets,FINANCE & CORPORATE SERVICES
1500.00,Little Mouse Pottery,Assets,Current Assets,Covid19 Funding,6219,Addnl Restrictions Grant,30/11/2020,Addnl Restrictions Grant,116193,Assets,FINANCE & CORPORATE SERVICES
1500.00,Little Wayside,Assets,Current Assets,Covid19 Funding,6219,Addnl Restrictions Grant,30/11/2020,Addnl Restrictions Grant,116194,Assets,FINANCE & CORPORATE SERVICES
1500.00,Live 9 Events Ltd,Assets,Current Assets,Covid19 Funding,6219,Addnl Restrictions Grant,18/11/2020,Addnl Restrictions Grant,115304,Assets,FINANCE & CORPORATE SERVICES
1500.00,Living Hq,Assets,Current Assets,Covid19 Funding,6219,Addnl Restrictions Grant,24/11/2020,Addnl Restrictions Grant,115803,Assets,FINANCE & CORPORATE SERVICES
1500.00,Lmh Hair And Beauty Ltd,Assets,Current Assets,Covid19 Funding,6219,Addnl Restrictions Grant,20/11/2020,Addnl Restrictions Grant,115468,Assets,FINANCE & CORPORATE SERVICES
1500.00,Looporder Limited,Assets,Current Assets,Covid19 Funding,6219,Addnl Restrictions Grant,24/11/2020,Addnl Restrictions Grant,115792,Assets,FINANCE & CORPORATE SERVICES
1500.00,Love Fabric,Assets,Current Assets,Covid19 Funding,6219,Addnl Restrictions Grant,16/11/2020,Addnl Restrictions Grant,115044,Assets,FINANCE & CORPORATE SERVICES
1500.00,Lrmees Ltd,Assets,Current Assets,Covid19 Funding,6219,Addnl Restrictions Grant,18/11/2020,Addnl Restrictions Grant,115293,Assets,FINANCE & CORPORATE SERVICES
1500.00,Lulu.B (Notts) Ltd,Assets,Current Assets,Covid19 Funding,6219,Addnl Restrictions Grant,26/11/2020,Addnl Restrictions Grant,115983,Assets,FINANCE & CORPORATE SERVICES
1500.00,Malt Mill Motors Ltd.,Assets,Current Assets,Covid19 Funding,6219,Addnl Restrictions Grant,24/11/2020,Addnl Restrictions Grant,115786,Assets,FINANCE & CORPORATE SERVICES
1500.00,Marie Hall Hairdressing Ltd,Assets,Current Assets,Covid19 Funding,6219,Addnl Restrictions Grant,16/11/2020,Addnl Restrictions Grant,115055,Assets,FINANCE & CORPORATE SERVICES
1500.00,Mark Jarvis Ltd,Assets,Current Assets,Covid19 Funding,6219,Addnl Restrictions Grant,16/11/2020,Addnl Restrictions Grant,114999,Assets,FINANCE & CORPORATE SERVICES
1500.00,Marleys Bodyart,Assets,Current Assets,Covid19 Funding,6219,Addnl Restrictions Grant,16/11/2020,Addnl Restrictions Grant,115006,Assets,FINANCE & CORPORATE SERVICES
1500.00,Master Electronics Technology Ltd,Assets,Current Assets,Covid19 Funding,6219,Addnl Restrictions Grant,24/11/2020,Addnl Restrictions Grant,115738,Assets,FINANCE & CORPORATE SERVICES
1500.00,Mc Hair & Beauty,Assets,Current Assets,Covid19 Funding,6219,Addnl Restrictions Grant,16/11/2020,Addnl Restrictions Grant,114982,Assets,FINANCE & CORPORATE SERVICES
1500.00,Meredith Tailors Ltd,Assets,Current Assets,Covid19 Funding,6219,Addnl Restrictions Grant,30/11/2020,Addnl Restrictions Grant,116207,Assets,FINANCE & CORPORATE SERVICES
1500.00,Michelle Whiting & Lewis Conlin T/As Urban Be,Assets,Current Assets,Covid19 Funding,6219,Addnl Restrictions Grant,26/11/2020,Addnl Restrictions Grant,115970,Assets,FINANCE & CORPORATE SERVICES
1500.00,Midshires Way Campsite,Assets,Current Assets,Covid19 Funding,6219,Addnl Restrictions Grant,18/11/2020,Addnl Restrictions Grant,115301,Assets,FINANCE & CORPORATE SERVICES
1500.00,Morgan & Company (Nottm) Ltd,Assets,Current Assets,Covid19 Funding,6219,Addnl Restrictions Grant,13/11/2020,Addnl Restrictions Grant,114871,Assets,FINANCE & CORPORATE SERVICES
1500.00,Mousy Brown Ltd.,Assets,Current Assets,Covid19 Funding,6219,Addnl Restrictions Grant,18/11/2020,Addnl Restrictions Grant,115277,Assets,FINANCE & CORPORATE SERVICES
1500.00,Mr Harid Saradj T/A Frangos Chicken Grill Hou,Assets,Current Assets,Covid19 Funding,6219,Addnl Restrictions Grant,13/11/2020,Addnl Restrictions Grant,114877,Assets,FINANCE & CORPORATE SERVICES
1500.00,Mrs Coffee Limited,Assets,Current Assets,Covid19 Funding,6219,Addnl Restrictions Grant,16/11/2020,Addnl Restrictions Grant,115008,Assets,FINANCE & CORPORATE SERVICES
1500.00,Mychelle Caroline Hair,Assets,Current Assets,Covid19 Funding,6219,Addnl Restrictions Grant,16/11/2020,Addnl Restrictions Grant,114991,Assets,FINANCE & CORPORATE SERVICES
1500.00,Mystique Nail Bar,Assets,Current Assets,Covid19 Funding,6219,Addnl Restrictions Grant,20/11/2020,Addnl Restrictions Grant,115528,Assets,FINANCE & CORPORATE SERVICES
1500.00,Natasha Dorey The Treatment Room,Assets,Current Assets,Covid19 Funding,6219,Addnl Restrictions Grant,26/11/2020,Addnl Restrictions Grant,115957,Assets,FINANCE & CORPORATE SERVICES
1500.00,Naturescape Limited,Assets,Current Assets,Covid19 Funding,6219,Addnl Restrictions Grant,26/11/2020,Addnl Restrictions Grant,116019,Assets,FINANCE & CORPORATE SERVICES
1500.00,No.41 Style & Home Ltd,Assets,Current Assets,Covid19 Funding,6219,Addnl Restrictions Grant,13/11/2020,Addnl Restrictions Grant,114913,Assets,FINANCE & CORPORATE SERVICES
1500.00,No52rr Limited,Assets,Current Assets,Covid19 Funding,6219,Addnl Restrictions Grant,30/11/2020,Addnl Restrictions Grant,116200,Assets,FINANCE & CORPORATE SERVICES
1500.00,No.9 Mens Hair,Assets,Current Assets,Covid19 Funding,6219,Addnl Restrictions Grant,16/11/2020,Addnl Restrictions Grant,114988,Assets,FINANCE & CORPORATE SERVICES
1500.00,Noble The Lion Ltd,Assets,Current Assets,Covid19 Funding,6219,Addnl Restrictions Grant,13/11/2020,Addnl Restrictions Grant,114897,Assets,FINANCE & CORPORATE SERVICES
1500.00,Novus Luxury Ltd,Assets,Current Assets,Covid19 Funding,6219,Addnl Restrictions Grant,16/11/2020,Addnl Restrictions Grant,115019,Assets,FINANCE & CORPORATE SERVICES
1500.00,Obsession Beauty Ltd,Assets,Current Assets,Covid19 Funding,6219,Addnl Restrictions Grant,16/11/2020,Addnl Restrictions Grant,115038,Assets,FINANCE & CORPORATE SERVICES
1500.00,Obsessions,Assets,Current Assets,Covid19 Funding,6219,Addnl Restrictions Grant,13/11/2020,Addnl Restrictions Grant,114883,Assets,FINANCE & CORPORATE SERVICES
1500.00,Obsessions Outlet,Assets,Current Assets,Covid19 Funding,6219,Addnl Restrictions Grant,26/11/2020,Addnl Restrictions Grant,116020,Assets,FINANCE & CORPORATE SERVICES
1500.00,Oddhouse Farm Partnership,Assets,Current Assets,Covid19 Funding,6219,Addnl Restrictions Grant,23/11/2020,Addnl Restrictions Grant,115681,Assets,FINANCE & CORPORATE SERVICES
1500.00,Okende Coffee Ltd,Assets,Current Assets,Covid19 Funding,6219,Addnl Restrictions Grant,16/11/2020,Addnl Restrictions Grant,115048,Assets,FINANCE & CORPORATE SERVICES
1500.00,Options Keyworth Ltd,Assets,Current Assets,Covid19 Funding,6219,Addnl Restrictions Grant,13/11/2020,Addnl Restrictions Grant,114905,Assets,FINANCE & CORPORATE SERVICES
1500.00,Outdoor & Countryside Brands Ltd,Assets,Current Assets,Covid19 Funding,6219,Addnl Restrictions Grant,24/11/2020,Addnl Restrictions Grant,115762,Assets,FINANCE & CORPORATE SERVICES
1500.00,Palmers Kitchens Bedrooms & Bathrooms Ltd,Assets,Current Assets,Covid19 Funding,6219,Addnl Restrictions Grant,30/11/2020,Addnl Restrictions Grant,116175,Assets,FINANCE & CORPORATE SERVICES
1500.00,P C Morley & Son,Assets,Current Assets,Covid19 Funding,6219,Addnl Restrictions Grant,20/11/2020,Addnl Restrictions Grant,115467,Assets,FINANCE & CORPORATE SERVICES
1500.00,P C Morley & Son,Assets,Current Assets,Covid19 Funding,6219,Addnl Restrictions Grant,24/11/2020,Addnl Restrictions Grant,115787,Assets,FINANCE & CORPORATE SERVICES
1500.00,Peaches Beauty Salon,Assets,Current Assets,Covid19 Funding,6219,Addnl Restrictions Grant,18/11/2020,Addnl Restrictions Grant,115239,Assets,FINANCE & CORPORATE SERVICES
1500.00,Pen2paper,Assets,Current Assets,Covid19 Funding,6219,Addnl Restrictions Grant,16/11/2020,Addnl Restrictions Grant,114987,Assets,FINANCE & CORPORATE SERVICES
1500.00,Pento Ltd,Assets,Current Assets,Covid19 Funding,6219,Addnl Restrictions Grant,26/11/2020,Addnl Restrictions Grant,115975,Assets,FINANCE & CORPORATE SERVICES
1500.00,Pg & Ds Limited,Assets,Current Assets,Covid19 Funding,6219,Addnl Restrictions Grant,26/11/2020,Addnl Restrictions Grant,115947,Assets,FINANCE & CORPORATE SERVICES
1500.00,Philip Boardman,Assets,Current Assets,Covid19 Funding,6219,Addnl Restrictions Grant,13/11/2020,Addnl Restrictions Grant,114868,Assets,FINANCE & CORPORATE SERVICES
1500.00,Philo Mills Ltd,Assets,Current Assets,Covid19 Funding,6219,Addnl Restrictions Grant,16/11/2020,Addnl Restrictions Grant,115018,Assets,FINANCE & CORPORATE SERVICES
1500.00,Phoenix Flowers,Assets,Current Assets,Covid19 Funding,6219,Addnl Restrictions Grant,18/11/2020,Addnl Restrictions Grant,115309,Assets,FINANCE & CORPORATE SERVICES
1500.00,Pizza Pizza Plus Ltd,Assets,Current Assets,Covid19 Funding,6219,Addnl Restrictions Grant,24/11/2020,Addnl Restrictions Grant,115783,Assets,FINANCE & CORPORATE SERVICES
1500.00,Platform 29 Teas Room,Assets,Current Assets,Covid19 Funding,6219,Addnl Restrictions Grant,24/11/2020,Addnl Restrictions Grant,115779,Assets,FINANCE & CORPORATE SERVICES
1500.00,Plough Inn,Assets,Current Assets,Covid19 Funding,6219,Addnl Restrictions Grant,26/11/2020,Addnl Restrictions Grant,115998,Assets,FINANCE & CORPORATE SERVICES
1500.00,Primrose House B And B,Assets,Current Assets,Covid19 Funding,6219,Addnl Restrictions Grant,16/11/2020,Addnl Restrictions Grant,115014,Assets,FINANCE & CORPORATE SERVICES
1500.00,Purple Mamba Club,Assets,Current Assets,Covid19 Funding,6219,Addnl Restrictions Grant,13/11/2020,Addnl Restrictions Grant,114873,Assets,FINANCE & CORPORATE SERVICES
1500.00,Quorn Country Crafts,Assets,Current Assets,Covid19 Funding,6219,Addnl Restrictions Grant,18/11/2020,Addnl Restrictions Grant,115262,Assets,FINANCE & CORPORATE SERVICES
1500.00,Radtek,Assets,Current Assets,Covid19 Funding,6219,Addnl Restrictions Grant,26/11/2020,Addnl Restrictions Grant,115948,Assets,FINANCE & CORPORATE SERVICES
1500.00,Rainbows And Lemondrops,Assets,Current Assets,Covid19 Funding,6219,Addnl Restrictions Grant,18/11/2020,Addnl Restrictions Grant,115285,Assets,FINANCE & CORPORATE SERVICES
1500.00,Raw Pubs Ltd,Assets,Current Assets,Covid19 Funding,6219,Addnl Restrictions Grant,19/11/2020,Addnl Restrictions Grant,115424,Assets,FINANCE & CORPORATE SERVICES
1500.00,Rbl (Radcliffe On Trent & District) Club Ltd,Assets,Current Assets,Covid19 Funding,6219,Addnl Restrictions Grant,16/11/2020,Addnl Restrictions Grant,115024,Assets,FINANCE & CORPORATE SERVICES
1500.00,Redg��s Sports Bar Ltd,Assets,Current Assets,Covid19 Funding,6219,Addnl Restrictions Grant,23/11/2020,Addnl Restrictions Grant,115695,Assets,FINANCE & CORPORATE SERVICES
1500.00,Red Heart,Assets,Current Assets,Covid19 Funding,6219,Addnl Restrictions Grant,13/11/2020,Addnl Restrictions Grant,114875,Assets,FINANCE & CORPORATE SERVICES
1500.00,Rehab Beauty Limited,Assets,Current Assets,Covid19 Funding,6219,Addnl Restrictions Grant,16/11/2020,Addnl Restrictions Grant,115002,Assets,FINANCE & CORPORATE SERVICES
1500.00,Rempstone White Lion Limited,Assets,Current Assets,Covid19 Funding,6219,Addnl Restrictions Grant,18/11/2020,Addnl Restrictions Grant,115276,Assets,FINANCE & CORPORATE SERVICES
1500.00,Rj Management Ltd,Assets,Current Assets,Covid19 Funding,6219,Addnl Restrictions Grant,20/11/2020,Addnl Restrictions Grant,115480,Assets,FINANCE & CORPORATE SERVICES
1500.00,Robinson Walsh Ltd,Assets,Current Assets,Covid19 Funding,6219,Addnl Restrictions Grant,18/11/2020,Addnl Restrictions Grant,115261,Assets,FINANCE & CORPORATE SERVICES
1500.00,Rose & May Ltd.,Assets,Current Assets,Covid19 Funding,6219,Addnl Restrictions Grant,18/11/2020,Addnl Restrictions Grant,115310,Assets,FINANCE & CORPORATE SERVICES
1500.00,Ruby Rae Ltd,Assets,Current Assets,Covid19 Funding,6219,Addnl Restrictions Grant,18/11/2020,Addnl Restrictions Grant,115316,Assets,FINANCE & CORPORATE SERVICES
1500.00,Ruddington Conservative Club Limited,Assets,Current Assets,Covid19 Funding,6219,Addnl Restrictions Grant,18/11/2020,Addnl Restrictions Grant,115312,Assets,FINANCE & CORPORATE SERVICES
1500.00,Ruddington Estate Social Club,Assets,Current Assets,Covid19 Funding,6219,Addnl Restrictions Grant,20/11/2020,Addnl Restrictions Grant,115543,Assets,FINANCE & CORPORATE SERVICES
1500.00,Sadler Hairdressing,Assets,Current Assets,Covid19 Funding,6219,Addnl Restrictions Grant,18/11/2020,Addnl Restrictions Grant,115302,Assets,FINANCE & CORPORATE SERVICES
1500.00,Salon 99,Assets,Current Assets,Covid19 Funding,6219,Addnl Restrictions Grant,30/11/2020,Addnl Restrictions Grant,116205,Assets,FINANCE & CORPORATE SERVICES
1500.00,Samantha Kemp / Ta Number One Barbers,Assets,Current Assets,Covid19 Funding,6219,Addnl Restrictions Grant,18/11/2020,Addnl Restrictions Grant,115291,Assets,FINANCE & CORPORATE SERVICES
1500.00,Samantha Rose Limited,Assets,Current Assets,Covid19 Funding,6219,Addnl Restrictions Grant,24/11/2020,Addnl Restrictions Grant,115772,Assets,FINANCE & CORPORATE SERVICES
1500.00,Sanctum,Assets,Current Assets,Covid19 Funding,6219,Addnl Restrictions Grant,16/11/2020,Addnl Restrictions Grant,115051,Assets,FINANCE & CORPORATE SERVICES
1500.00,Sarah Hardy Holistic Therapies,Assets,Current Assets,Covid19 Funding,6219,Addnl Restrictions Grant,23/11/2020,Addnl Restrictions Grant,115692,Assets,FINANCE & CORPORATE SERVICES
1500.00,Sarah Storey Beauty & Wellbeing,Assets,Current Assets,Covid19 Funding,6219,Addnl Restrictions Grant,20/11/2020,Addnl Restrictions Grant,115538,Assets,FINANCE & CORPORATE SERVICES
1500.00,Sarsfield'S Chocolaterie Ltd,Assets,Current Assets,Covid19 Funding,6219,Addnl Restrictions Grant,30/11/2020,Addnl Restrictions Grant,116197,Assets,FINANCE & CORPORATE SERVICES
1500.00,Scissor Happy Ltd,Assets,Current Assets,Covid19 Funding,6219,Addnl Restrictions Grant,18/11/2020,Addnl Restrictions Grant,115288,Assets,FINANCE & CORPORATE SERVICES
1500.00,Scrunchies Hair Design,Assets,Current Assets,Covid19 Funding,6219,Addnl Restrictions Grant,20/11/2020,Addnl Restrictions Grant,115474,Assets,FINANCE & CORPORATE SERVICES
1500.00,Shade Bridal Boutique Ltd,Assets,Current Assets,Covid19 Funding,6219,Addnl Restrictions Grant,13/11/2020,Addnl Restrictions Grant,114900,Assets,FINANCE & CORPORATE SERVICES
1500.00,Shelford Nurseries Caravan Park,Assets,Current Assets,Covid19 Funding,6219,Addnl Restrictions Grant,13/11/2020,Addnl Restrictions Grant,114884,Assets,FINANCE & CORPORATE SERVICES
1500.00,Show Attack Ltd,Assets,Current Assets,Covid19 Funding,6219,Addnl Restrictions Grant,26/11/2020,Addnl Restrictions Grant,115985,Assets,FINANCE & CORPORATE SERVICES
1500.00,Sk&S Limited,Assets,Current Assets,Covid19 Funding,6219,Addnl Restrictions Grant,26/11/2020,Addnl Restrictions Grant,115987,Assets,FINANCE & CORPORATE SERVICES
1500.00,Smart Beauty,Assets,Current Assets,Covid19 Funding,6219,Addnl Restrictions Grant,23/11/2020,Addnl Restrictions Grant,115678,Assets,FINANCE & CORPORATE SERVICES
1500.00,Smartcaddy Ltd,Assets,Current Assets,Covid19 Funding,6219,Addnl Restrictions Grant,20/11/2020,Addnl Restrictions Grant,115504,Assets,FINANCE & CORPORATE SERVICES
1500.00,Smart Hair,Assets,Current Assets,Covid19 Funding,6219,Addnl Restrictions Grant,26/11/2020,Addnl Restrictions Grant,115950,Assets,FINANCE & CORPORATE SERVICES
1500.00,Snail And Rabbit,Assets,Current Assets,Covid19 Funding,6219,Addnl Restrictions Grant,26/11/2020,Addnl Restrictions Grant,115966,Assets,FINANCE & CORPORATE SERVICES
1500.00,Something Special (East Leake) Ltd,Assets,Current Assets,Covid19 Funding,6219,Addnl Restrictions Grant,30/11/2020,Addnl Restrictions Grant,116188,Assets,FINANCE & CORPORATE SERVICES
1500.00,Sophias Coffee Shop,Assets,Current Assets,Covid19 Funding,6219,Addnl Restrictions Grant,13/11/2020,Addnl Restrictions Grant,114911,Assets,FINANCE & CORPORATE SERVICES
1500.00,Sophie Laura Beauty Ltd,Assets,Current Assets,Covid19 Funding,6219,Addnl Restrictions Grant,16/11/2020,Addnl Restrictions Grant,115049,Assets,FINANCE & CORPORATE SERVICES
1500.00,Sophie'S Flower Company,Assets,Current Assets,Covid19 Funding,6219,Addnl Restrictions Grant,24/11/2020,Addnl Restrictions Grant,115756,Assets,FINANCE & CORPORATE SERVICES
1500.00,S R Plowright Ltd,Assets,Current Assets,Covid19 Funding,6219,Addnl Restrictions Grant,24/11/2020,Addnl Restrictions Grant,115785,Assets,FINANCE & CORPORATE SERVICES
1500.00,S R Plowright Ltd,Assets,Current Assets,Covid19 Funding,6219,Addnl Restrictions Grant,24/11/2020,Addnl Restrictions Grant,115789,Assets,FINANCE & CORPORATE SERVICES
1500.00,Strawberry Blinds,Assets,Current Assets,Covid19 Funding,6219,Addnl Restrictions Grant,26/11/2020,Addnl Restrictions Grant,115946,Assets,FINANCE & CORPORATE SERVICES
1500.00,Studio 39,Assets,Current Assets,Covid19 Funding,6219,Addnl Restrictions Grant,16/11/2020,Addnl Restrictions Grant,115037,Assets,FINANCE & CORPORATE SERVICES
1500.00,Studio 83,Assets,Current Assets,Covid19 Funding,6219,Addnl Restrictions Grant,26/11/2020,Addnl Restrictions Grant,115991,Assets,FINANCE & CORPORATE SERVICES
1500.00,Studiotwenty Interiors Ltd,Assets,Current Assets,Covid19 Funding,6219,Addnl Restrictions Grant,18/11/2020,Addnl Restrictions Grant,115299,Assets,FINANCE & CORPORATE SERVICES
1500.00,Stylish Strands Hair Design By Fj,Assets,Current Assets,Covid19 Funding,6219,Addnl Restrictions Grant,24/11/2020,Addnl Restrictions Grant,115735,Assets,FINANCE & CORPORATE SERVICES
1500.00,Summers At Eleven,Assets,Current Assets,Covid19 Funding,6219,Addnl Restrictions Grant,19/11/2020,Addnl Restrictions Grant,115308,Assets,FINANCE & CORPORATE SERVICES
1500.00,Synergy Beauty Salon,Assets,Current Assets,Covid19 Funding,6219,Addnl Restrictions Grant,18/11/2020,Addnl Restrictions Grant,115314,Assets,FINANCE & CORPORATE SERVICES
1500.00,Terracotta The Old Canteen,Assets,Current Assets,Covid19 Funding,6219,Addnl Restrictions Grant,26/11/2020,Addnl Restrictions Grant,115995,Assets,FINANCE & CORPORATE SERVICES
1500.00,The 2nd Flooring Company,Assets,Current Assets,Covid19 Funding,6219,Addnl Restrictions Grant,24/11/2020,Addnl Restrictions Grant,115748,Assets,FINANCE & CORPORATE SERVICES
1500.00,The Air Hostess Ltd,Assets,Current Assets,Covid19 Funding,6219,Addnl Restrictions Grant,20/11/2020,Addnl Restrictions Grant,115477,Assets,FINANCE & CORPORATE SERVICES
1500.00,The Anchor Inn,Assets,Current Assets,Covid19 Funding,6219,Addnl Restrictions Grant,26/11/2020,Addnl Restrictions Grant,115941,Assets,FINANCE & CORPORATE SERVICES
1500.00,The Avenue Beauty Clinic,Assets,Current Assets,Covid19 Funding,6219,Addnl Restrictions Grant,19/11/2020,Addnl Restrictions Grant,115426,Assets,FINANCE & CORPORATE SERVICES
1500.00,The Barbers,Assets,Current Assets,Covid19 Funding,6219,Addnl Restrictions Grant,20/11/2020,Addnl Restrictions Grant,115514,Assets,FINANCE & CORPORATE SERVICES
1500.00,The Barbers Lounge,Assets,Current Assets,Covid19 Funding,6219,Addnl Restrictions Grant,16/11/2020,Addnl Restrictions Grant,115053,Assets,FINANCE & CORPORATE SERVICES
1500.00,The Beauty Spot,Assets,Current Assets,Covid19 Funding,6219,Addnl Restrictions Grant,26/11/2020,Addnl Restrictions Grant,116021,Assets,FINANCE & CORPORATE SERVICES
1500.00,The Blossom Tree Keyworth Ltd,Assets,Current Assets,Covid19 Funding,6219,Addnl Restrictions Grant,16/11/2020,Addnl Restrictions Grant,115022,Assets,FINANCE & CORPORATE SERVICES
1500.00,The Bottle Top,Assets,Current Assets,Covid19 Funding,6219,Addnl Restrictions Grant,16/11/2020,Addnl Restrictions Grant,115020,Assets,FINANCE & CORPORATE SERVICES
1500.00,The Cuckoo Bush,Assets,Current Assets,Covid19 Funding,6219,Addnl Restrictions Grant,30/11/2020,Addnl Restrictions Grant,116195,Assets,FINANCE & CORPORATE SERVICES
1500.00,The Durham Ox Orston Ltd,Assets,Current Assets,Covid19 Funding,6219,Addnl Restrictions Grant,20/11/2020,Addnl Restrictions Grant,115512,Assets,FINANCE & CORPORATE SERVICES
1500.00,The Groom Inn,Assets,Current Assets,Covid19 Funding,6219,Addnl Restrictions Grant,18/11/2020,Addnl Restrictions Grant,115295,Assets,FINANCE & CORPORATE SERVICES
1500.00,The Guesthouse At Rempstone Limited,Assets,Current Assets,Covid19 Funding,6219,Addnl Restrictions Grant,24/11/2020,Addnl Restrictions Grant,115796,Assets,FINANCE & CORPORATE SERVICES
1500.00,The Hair Barn,Assets,Current Assets,Covid19 Funding,6219,Addnl Restrictions Grant,18/11/2020,Addnl Restrictions Grant,115257,Assets,FINANCE & CORPORATE SERVICES
1500.00,The Humble Cat Limited,Assets,Current Assets,Covid19 Funding,6219,Addnl Restrictions Grant,18/11/2020,Addnl Restrictions Grant,115274,Assets,FINANCE & CORPORATE SERVICES
1500.00,The Key Event Hire Limited,Assets,Current Assets,Covid19 Funding,6219,Addnl Restrictions Grant,24/11/2020,Addnl Restrictions Grant,115769,Assets,FINANCE & CORPORATE SERVICES
